Cogmind - Beta 10.2 @@@ ROGUE MODE // 2021.01.11 @ 01:01:37 Player: blelm Result: Establishing 0b11! Performance ------------- Evolutions (9) 4500 Regions Visited (38) 7600 Robots Destroyed (587) 2935 Value Destroyed (37547) 37547 Prototype IDs (107) 2140 Alien Tech Used (17) 3400 Bonus (42873) 42873 TOTAL SCORE: 100995 Bonus ------- High Alert Combat Kills 1500 Follower Combat Kills 1275 Entered Garrisons 1000 Used RIF Installer 2500 Network Hubs Disabled 400 Met Data Miner 300 Built Enhanced Grunts 300 Met R17 at Cetus 500 Scanned by Researcher 500 Pursued by Intercept 500 Recovered Sigix Corpse 1000 Destroyed MAIN.C Guards 500 Met MAIN.C 5000 Destroyed MAIN.C Shell 5000 Destroyed MAIN.C 10000 Met Architect 300 Destroyed A8 300 Destroyed A6 400 Destroyed A5 500 Destroyed A4 700 Destroyed A3 800 Destroyed A2 1000 Destroyed Architect 15000 Win 3000 Friendly Fire -9402 Cogmind --------- Core Integrity 566/2100 Matter 300/300 Energy 1645/1700 System Corruption 0% Temperature Cool (12) Movement Treading (172) Ox1 Location 0b11 Command Parts ------- > --- POWER (2) -------- Vortex Chain Reactor > --- PROPULSION (4) --- Experimental Biometal Heavy Treads Advanced Heavy Siege Treads > --- UTILITY (14) ----- Desublimator Desublimator 2N-1CE's Frost Array High-capacity Storage Unit High-capacity Storage Unit High-capacity Storage Unit Experimental Energy Well Enhanced Optical Array Experimental Terrain Scan Processor Advanced Armor Integrity Analyzer SHELL Armor AEGIS Remote Shield > --- WEAPON (6) ------- Linked Autogun Hypervelocity Linear Accelerator Hypervelocity Linear Accelerator Hypervelocity Linear Accelerator Hypervelocity Linear Accelerator > --- INVENTORY (28) --- Graviton Reactor Zero-point Reactor High-density Centrium Heavy Treads Advanced Energy Well (800) Experimental Matter Compressor (3) Experimental Matter Compressor (235) Experimental Matter Compressor (0) Long-range Terrain Scanner Advanced Particle Charger Advanced Kinecellerator Experimental Weapon Cycler Experimental Weapon Cycler Experimental Core Shielding Experimental Powered Armor Experimental Powered Armor Beam Splitter Experimental Force Field Long-range Tractor Beam Neutron Cannon Hypervelocity Linear Accelerator Hypervelocity Linear Accelerator Hypervelocity Linear Accelerator Omega Cannon Tiamat Missile Launcher Sigix Corpse Peak State ------------ > --- POWER ------------ Zero-point Reactor Zero-point Reactor > --- PROPULSION ------- Experimental Biometal Heavy Treads High-density Centrium Heavy Treads > --- UTILITY ---------- 2N-1CE's Frost Array High-capacity Storage Unit High-capacity Storage Unit High-capacity Storage Unit Experimental Matter Compressor Advanced Terrain Scan Processor Experimental Target Analyzer Advanced Armor Integrity Analyzer SHELL Armor Phase Armor AEGIS Remote Shield > --- WEAPON ----------- Sigix Quantum Sheargun Sigix Quantum Sheargun Linked Autogun Sigix Broadsword > --- INVENTORY -------- Experimental Biometal Heavy Treads Advanced Heavy Siege Treads High-density Centrium Heavy Treads Advanced Energy Well Experimental Energy Well Matter Compressor Improved Matter Compressor Long-range Terrain Scanner Experimental Powered Armor Experimental Powered Armor Heavy Regenerative Plating Beam Splitter Advanced Force Field Long-range Tractor Beam Transdimensional Reconstructor High-powered Transdimensional Reconstructor Integrity Redistributor Integrity Redistributor Compact HERF Cannon Cooled Nova Cannon Linked Autogun Helical Railgun Advanced Micro-nuke Launcher [Rating: 261] Favorites ----------- Power Zero-point Reactor Engine Cooled Ion Engine Reactor Zero-point Reactor Propulsion Light Treads Treads Light Treads Leg Aluminum Leg Wheel Compact Wheel Hover Unit Cooled Antigrav System Utility High-capacity Storage Unit Device Experimental Sensor Array Storage High-capacity Storage Unit Processor Experimental Signal Interpreter Hackware Relay Coupler [NC] Protection SHELL Armor Artifact Phase Armor Weapon Gauss Rifle Energy Gun Sigix Quantum Sheargun Energy Cannon EM Pulse Cannon Ballistic Gun Gauss Rifle Ballistic Cannon Hypervelocity Linear Accelerator Launcher Proton Missile Launcher Special Weapon Advanced Remote Datajack Impact Weapon Heavy Flail Slashing Weapon Sigix Broadsword Piercing Weapon Plasma Lance Build | -11 -10 -10 -10 -9 -8 -8 -8 -8 -7 -7 -7 -7 -6 -6 -6 -6 -6 -5 -5 -5 -5 -5 -5 -5 -4 -4 -4 -4 -4 -4 -3 -3 -2 -2 -2 -1 -1 -1 ------- Run | Scr Mat Min Exi Min Mat Gar Mat Gar Fac Low Low Dat Pro Fac Was Fac Gar Fac Was Fac Ext Cet Arc Hub Fac Was Fac Gar Fac Gar Res Tes Res Qua Sec Acc Com Ac0 Slots Evolved 18 | . . . . . 4 . . . 2 . . . . 2 . . . 2 . . . . . . 2 . . . . . 2 . 2 . . 2 . . Power 1 | . . . . . . . . . . . . . . . . . . . . . . . . . . . . . . . 1 . . . . . . . Propulsion 2 | . . . . . 1 . . . . . . . . . . . . 1 . . . . . . . . . . . . . . . . . . . . Utility 12 | . . . . . 2 . . . 2 . . . . 2 . . . 1 . . . . . . 2 . . . . . 1 . 2 . . . . . Weapon 3 | . . . . . 1 . . . . . . . . . . . . . . . . . . . . . . . . . . . . . . 2 . . Parts Attached 1340 | 5 15 7 2 1 42 19 3 9 10 14 8 2 16 12 18 29 36 34 13 30 30 22 4 74 19 11 52 19 81 14 31 74 21 96 169 14 143 141 Power 42 | . . 1 . . 5 . . . . . . . 1 1 2 . 1 . 2 . . 2 . . 1 . . . . . 1 1 1 1 6 . 10 6 Engine 8 | . . 1 . . 5 . . . . . . . 1 1 . . . . . . . . . . . . . . . . . . . . . . . . Core . | . . . . . . . . . . . . . . . . . . . . . . . . . . . . . . . . . . . . . . . Reactor 34 | . . . . . . . . . . . . . . . 2 . 1 . 2 . . 2 . . 1 . . . . . 1 1 1 1 6 . 10 6 Propulsion 77 | 4 2 1 1 . 10 8 . 2 . . . . 3 1 1 4 2 1 1 . . 4 . 1 1 . 3 . 1 1 1 1 1 5 5 . 9 3 Treads 71 | 2 2 . 1 . 10 8 . 2 . . . . 3 1 1 2 2 1 1 . . 4 . 1 1 . 3 . 1 1 1 1 1 5 5 . 8 3 Leg 2 | 2 . . . . . . . . . . . . . . . . . . . . . . . . . . . . . . . . . . . . . . Wheel 3 | . . 1 . . . . . . . . . . . . . 2 . . . . . . . . . . . . . . . . . . . . . . Hover 1 | . . . . . . . . . . . . . . . . . . . . . . . . . . . . . . . . . . . . . 1 . Flight . | . . . . . . . . . . . . . . . . . . . . . . . . . . . . . . . . . . . . . . . Utility 745 | 1 4 . 1 . 6 1 2 4 10 4 3 . 6 6 5 14 15 23 6 22 20 8 2 49 11 5 30 12 61 7 22 56 11 66 103 7 67 75 Device 480 | . . . . . . . . . 4 1 1 . 1 4 3 11 7 11 2 15 17 5 1 32 5 4 10 7 37 7 17 42 8 50 79 4 36 59 Storage 42 | 1 4 . 1 . 1 . . 1 2 . . . 1 . . . . . . 4 . 2 . . . . 3 . . . 1 . . 1 8 1 9 2 Processor 22 | . . . . . . . . . 1 . 1 . . . . 1 . 4 . . . . . 3 . . 2 . 2 . . . . . 3 1 4 . Hackware 15 | . . . . . . . . 1 . 1 . . . . 1 1 1 . 1 1 . . . . 1 . 2 1 1 . . . 1 . 2 . . . Protection 178 | . . . . . 5 1 2 2 3 2 1 . 4 2 1 1 7 8 3 2 3 1 1 14 5 1 13 4 21 . 4 14 2 15 7 . 15 14 Artifact 8 | . . . . . . . . . . . . . . . . . . . . . . . . . . . . . . . . . . . 4 1 3 . Weapon 476 | . 9 5 . 1 21 10 1 3 . 10 5 2 6 4 10 11 18 10 4 8 10 8 2 24 6 6 19 7 19 6 7 16 8 24 55 7 57 57 Energy Gun 44 | . 3 2 . . 6 . . . . . . . . . . . . . . . . 2 . 1 3 1 2 . . . . 1 1 1 1 1 15 4 Energy Cannon 134 | . 3 . . . 1 2 . 1 . 1 1 . 1 2 1 5 4 5 . 4 3 1 . 11 . 2 10 1 8 2 3 5 4 9 29 3 3 9 Ballistic Gun 182 | . 1 . . . 9 5 1 2 . 4 2 2 4 1 5 5 8 3 3 4 4 4 2 11 1 1 6 4 7 3 3 8 3 11 18 3 17 17 Ballistic Cannon 25 | . . . . . . . . . . . . . . . . . 1 . . . . . . . . . . . . . . . . . . . 4 20 Launcher 26 | . . 2 . 1 1 3 . . . . . . . . . . 5 . . . 1 1 . . . 1 1 2 2 1 1 . . 1 . . 2 1 Special Weapon 37 | . 2 1 . . 4 . . . . 1 . . . 1 3 . . 2 1 . 2 . . 1 2 1 . . 2 . . 2 . 2 7 . 3 . Impact Weapon 6 | . . . . . . . . . . 4 . . . . . . . . . . . . . . . . . . . . . . . . . . . 2 Slashing Weapon 21 | . . . . . . . . . . . 2 . 1 . 1 1 . . . . . . . . . . . . . . . . . . . . 13 3 Piercing Weapon 1 | . . . . . . . . . . . . . . . . . . . . . . . . . . . . . . . . . . . . . . 1 Special Melee Weapon . | . . . . . . . . . . . . . . . . . . . . . . . . . . . . . . . . . . . . . . . Unidentified Prototypes 91 | . . . . . 4 . . . . . . . 1 . . . . 1 . 1 . 5 . . . 1 1 . 2 . 3 6 . 6 17 . 24 19 Parts Lost 62 | . 3 2 . . 8 . . 1 . . . . 2 1 . . 3 1 . . 1 . . 3 1 . . 2 1 1 . 1 1 . 13 . 5 12 Power 8 | . . . . . 1 . . . . . . . . . . . 1 . . . . . . . 1 . . . . . . . . . 3 . 2 . Propulsion 10 | . . . . . 2 . . . . . . . 1 1 . . . . . . . . . . . . . . . 1 . . . . 3 . . 2 Utility 16 | . . . . . 2 . . . . . . . . . . . 2 1 . . 1 . . . . . . 1 1 . . . 1 . 5 . 1 1 Weapon 28 | . 3 2 . . 3 . . 1 . . . . 1 . . . . . . . . . . 3 . . . 1 . . . 1 . . 2 . 2 9 Highest Loss Streak 7 | . 1 1 . . 7 . . 1 . . . . 1 1 . . 1 1 . . 1 . . 1 1 . . 1 1 1 . 1 1 . 3 . 3 4 Average Slot Usage (%) 82 | . 99 100 89 85 84 81 80 83 99 100 100 85 98 100 75 79 90 87 76 76 78 81 82 84 83 84 84 88 84 89 87 81 81 81 77 74 73 76 Engine 2 | . 14 14 14 14 8 9 9 9 7 7 7 7 6 6 . . . . . . . . . . . . . . . . . . . . . . . . Reactor 4 | . . . . . . . . . . . . . . . 5 6 6 5 5 5 5 5 5 5 5 5 5 5 5 5 9 9 8 8 7 7 6 3 Treads 12 | . 27 15 14 28 26 27 27 27 23 23 23 23 21 20 13 12 13 11 11 11 11 10 11 11 10 10 10 10 10 10 9 9 8 8 8 7 6 7 Device 8 | . . . . . . . . . 6 5 7 7 6 12 6 5 6 13 5 9 7 10 10 9 9 9 10 18 12 10 15 10 17 16 9 8 10 14 Storage 18 | . 28 28 18 14 9 9 9 11 22 23 23 23 23 20 20 20 20 17 17 18 23 23 23 23 21 21 21 21 21 21 19 19 17 17 17 17 15 14 Processor 6 | . . . . . . . . . 7 7 7 7 7 6 6 6 6 5 5 5 5 5 5 8 5 5 7 5 9 10 9 9 8 8 11 11 8 11 Hackware 1 | . . . . . . . . . . . . . . . . . . . 5 . . . . . 4 5 4 . 2 5 4 4 4 4 4 3 . . Protection 6 | . . . . . 12 9 8 9 7 8 7 7 7 13 5 6 16 14 5 5 5 5 5 5 10 10 8 11 6 10 4 3 3 3 5 3 5 3 Energy Gun 2 | . 16 4 14 14 6 . . . . . . . . . . . . . . . . . . . 4 4 . . . . . . . . . 1 5 . Energy Cannon 2 | . 8 . . . . 7 9 1 . . 3 . 1 5 4 4 2 7 . 6 . 13 . 11 . . 3 . 3 . 3 3 2 2 2 2 . 1 Ballistic Gun 9 | . 1 14 14 5 19 13 9 23 23 20 16 1 15 13 4 13 13 7 13 10 16 3 17 5 10 9 10 14 11 13 9 8 10 8 7 8 5 3 Naked Turns . | . . . . . . . . . . . . . . . . . . . . . . . . . . . . . . . . . . . . . . . Heaviest Build 296 | 16 74 75 90 91 113 119 120 140 172 131 127 123 131 144 170 176 171 176 176 208 208 197 195 213 220 203 224 212 223 197 248 236 233 255 255 261 276 296 Greatest Support 177 | 40 40 40 40 40 60 60 60 60 60 60 60 60 60 60 90 100 100 140 140 140 140 160 150 150 155 155 155 145 150 150 150 145 155 170 175 175 175 177 Greatest Overweight (x) 62 | . 1 4 5 2 2 1 1 2 2 2 2 2 3 2 56 2 1 1 1 1 1 2 62 1 1 1 1 1 1 1 1 1 1 2 1 1 3 1 Average Overweight (x) 1 | . . 3 4 2 1 1 1 1 2 2 1 1 2 2 21 1 1 1 1 . 1 1 14 1 1 1 1 1 1 1 1 1 1 1 1 1 1 1 Largest Inventory Capacity 48 | 8 20 20 24 24 44 24 24 32 48 28 28 28 28 28 28 28 28 28 28 36 36 36 36 36 36 36 36 36 36 36 36 36 36 36 36 36 36 28 Average Capacity 30 | 6 17 20 21 24 24 24 24 25 28 28 28 28 28 28 28 28 28 28 28 29 36 36 36 36 36 36 36 36 36 36 36 36 36 36 36 36 31 28 Most Carried 36 | 7 20 19 22 24 24 24 24 27 27 28 28 28 28 28 28 28 28 28 28 30 35 36 36 36 35 36 36 36 36 36 36 36 36 36 36 36 36 28 Average Carried 29 | 6 16 18 18 23 23 23 23 24 25 27 27 28 27 25 27 27 27 27 27 28 32 35 35 35 32 35 35 35 35 35 35 35 34 35 34 35 30 26 Final Capacity 36 | 8 20 20 24 24 24 24 24 32 28 28 28 28 28 28 28 28 28 28 28 36 36 36 36 36 36 36 36 36 36 36 36 36 36 36 36 36 36 28 Final Carried 36 | 7 19 18 22 24 24 24 24 27 27 27 28 28 28 28 28 28 28 28 28 30 35 36 36 35 33 35 36 36 36 36 36 36 36 36 36 35 35 27 Class Distribution -------------------- 26% | Bothacker-Mutant 16% | Hauler-Mutant 10% | Scavenger-Mutant 9% | Bothacker-Skirmisher 6% | Scavenger-Executioner 5% | Hauler-Tank 4% | Hauler-Skirmisher 4% | Bothacker-Tank 4% | Botlord-Mutant 3% | Scavenger-Gunner Dominant Class ---------------- Mutant | -10/Materials Hauler-Mutant | -10/Mines Hauler-Mutant | -10/Exiles Hauler-Mutant | -9/Mines Hauler-Tank | -8/Materials Hauler-Mutant | -8/Garrison Hauler-Mutant | -8/Materials Hauler-Tank | -8/Garrison Bothacker-Mutant | -7/Factory Bothacker-Skirmisher | -7/Lower Caves Bothacker-Mutant | -7/Lower Caves Bothacker-Mutant | -7/Data Miner Bothacker-Mutant | -6/Proximity Caves Bothacker-Mutant | -6/Factory Bothacker-Mutant | -6/Waste Bothacker-Mutant | -6/Factory Bothacker-Mutant | -6/Garrison Bothacker-Mutant | -5/Factory Bothacker-Mutant | -5/Waste Bothacker-Mutant | -5/Factory Hauler-Skirmisher | -5/Extension Hauler-Mutant | -5/Cetus Hauler-Skirmisher | -5/Archives Hauler-Mutant | -5/Hub_04(d) Hauler-Mutant | -4/Factory Hauler-Mutant | -4/Waste Hauler-Mutant | -4/Factory Bothacker-Mutant | -4/Garrison Bothacker-Mutant | -4/Factory Bothacker-Mutant | -4/Garrison Botlord-Mutant | -3/Research Botlord-Mutant | -3/Testing Bothacker-Skirmisher | -2/Research Bothacker-Mutant | -2/Quarantine Bothacker-Mutant | -2/Section 7 Hauler-Executioner | -1/Access Scavenger-Mutant | -1/Command Scavenger-Executioner | -1/Access_0 Resources | -11 -10 -10 -10 -9 -8 -8 -8 -8 -7 -7 -7 -7 -6 -6 -6 -6 -6 -5 -5 -5 -5 -5 -5 -5 -4 -4 -4 -4 -4 -4 -3 -3 -2 -2 -2 -1 -1 -1 ----------- Run | Scr Mat Min Exi Min Mat Gar Mat Gar Fac Low Low Dat Pro Fac Was Fac Gar Fac Was Fac Ext Cet Arc Hub Fac Was Fac Gar Fac Gar Res Tes Res Qua Sec Acc Com Ac0 Matter Collected 35185 | 230 355 228 20 22 802 455 . 380 94 400 167 . 689 43 1201 776 1625 222 767 392 1105 338 254 826 236 710 733 851 1424 500 679 1255 432 1955 5396 357 4567 4699 Remotely 8633 | . . . . . . . . . . . . . . . . . . . . . . . . . . . 147 245 809 228 . 634 131 835 1742 . 1791 2071 Salvage Created 38582 | 97 640 264 . 12 1314 1349 . 793 94 403 173 . 105 43 1574 775 1238 222 993 873 1817 646 373 1575 236 1768 976 1010 1498 398 400 1195 498 2000 5867 357 4383 2623 Parts 1816 | 2 36 13 . 6 78 67 . 48 9 15 8 . 6 4 27 45 64 14 16 30 92 24 14 58 13 65 57 34 79 19 16 81 26 154 262 27 165 142 Haulers Intercepted 6 | . 2 . . . 4 . . . . . . . . . . . . . . . . . . . . . . . . . . . . . . . . . Recyclers Shooed 11 | . . 1 . . 1 . 1 . . . . . . . . 2 . . . . 2 . . . . . 1 . 1 . . . . 1 . . 1 . Parts Field Recycled . | . . . . . . . . . . . . . . . . . . . . . . . . . . . . . . . . . . . . . . . Retrieved Matter . | . . . . . . . . . . . . . . . . . . . . . . . . . . . . . . . . . . . . . . . Parts Self-Destructed 35 | . . . . . . . . . . 14 5 . 16 . . . . . . . . . . . . . . . . . . . . . . . . . Prevented 4 | . . . . . . . . . . . 4 . . . . . . . . . . . . . . . . . . . . . . . . . . . Kills | -11 -10 -10 -10 -9 -8 -8 -8 -8 -7 -7 -7 -7 -6 -6 -6 -6 -6 -5 -5 -5 -5 -5 -5 -5 -4 -4 -4 -4 -4 -4 -3 -3 -2 -2 -2 -1 -1 -1 ------- Run | Scr Mat Min Exi Min Mat Gar Mat Gar Fac Low Low Dat Pro Fac Was Fac Gar Fac Was Fac Ext Cet Arc Hub Fac Was Fac Gar Fac Gar Res Tes Res Qua Sec Acc Com Ac0 Combat Hostiles Destroyed 478 | . 9 10 . 5 23 29 . 22 2 4 3 . 3 1 6 4 28 3 3 10 20 7 4 14 4 . 19 18 22 5 3 19 8 25 76 4 31 34 Melee 4 | . . . . . . . . . . . . . . . . . . . . . . . . . . . . . . . . . . . . . 4 . Guns 291 | . 5 3 . . 18 3 . 12 2 4 2 . 3 1 6 4 10 2 3 5 19 . 4 4 4 . 8 7 20 2 3 9 8 19 55 3 22 21 Cannons 62 | . 4 . . . 1 3 . 1 . . 1 . . . . . 2 . . . . . . 2 . . 3 . 1 2 . 10 . 6 9 1 3 13 AOE 69 | . . 7 . 5 4 19 . 6 . . . . . . . . 14 . . . 1 3 . . . . 4 6 . . . . . . . . . . Classes Destroyed 23 | 2 6 1 . . 4 . . . 1 2 . . . . 1 . 1 . . . . . . . . 2 . . . . . . . . 2 . 1 . Worker 14 | . 1 1 . . . . . . . . . . . . . 4 . . . . 2 . . 3 . . 2 . . . . . 1 . . . . . Builder 13 | . 1 . . . 3 . . . . . . . . . . . . . . . 2 . . 1 . . 2 . . . . 1 . 1 2 . . . Tunneler 6 | 1 . 1 . . . . . . . . . . . . . . . . . . 2 . . 1 . . 1 . . . . . . . . . . . Hauler 6 | . 2 . . . 4 . . . . . . . . . . . . . . . . . . . . . . . . . . . . . . . . . Recycler 17 | 1 1 2 . . 1 . . . . . . . . . . 4 . . . 1 2 . . 2 . . . . . . 1 . . 1 . . 1 . Operator 4 | . . . . . 1 . . . . . . . . . . 1 . . . . . . . 1 . . . . . . . . . 1 . . . . Watcher 25 | . 2 . . . 3 . . . . . . . . . . . 2 1 . 1 1 . . 4 . . 1 . 2 . . 1 1 3 2 . 1 . Swarmer 60 | . 1 3 . 5 4 7 . 10 . 2 . . 2 . . . 7 . . . 2 3 . . . . 5 . . . . . 4 . 5 . . . Saboteur 1 | . . . . . . . . . . . . . . . . . . . . . . . . . . . . . . . . . . . . . 1 . Grunt 95 | . 8 2 . . 10 10 . 8 . . 1 . . . . . 11 . . . 8 . . 2 . . 1 14 6 2 . . . 4 6 . 2 . Brawler 11 | . . . . . 1 5 . . . . 1 . . . . . 2 . . . . . . . . . . 1 . . . . 1 . . . . . Duelist 4 | . . . . . . . . . . . . . . . . . 1 . . . . . . . . . . . . 1 . . 1 . . . 1 . Sentry 64 | . . . . . 7 6 . 2 . 1 . . 1 . . . 6 1 . 4 7 . 4 6 . . 4 1 2 . 3 . . . 6 3 . . Demolisher 1 | . . . . . . . . . . . . . . . . . . . . . . . . . . . . . . . . . . . . . 1 . Hunter 38 | . . . . . 1 1 . 2 . . 1 . . . . . . . . 2 2 . . 2 2 . 2 2 2 2 . . . . 7 . 10 . Programmer 118 | . . . . . . . . . 2 1 . . . 1 . 4 . 2 . 4 . . . 4 2 . 7 . 12 . . 19 2 21 29 1 7 . Q-Series 2 | . . . . . . . . . . . . . . . . . . . . . . . . . . . . . . . . . . . 2 . . . Behemoth 5 | . . . . . . . . . . . . . . . . . 1 . . . 1 . . . . . . . . . . . . . . . 3 . Compactor 9 | . . . . . . . . . . . . . . . 6 . . . 3 . . . . . . . . . . . . . . . . . . . Cetus Guard 4 | . . . . . . . . . . . . . . . . . . . . . . 4 . . . . . . . . . . . . . . . . S7 Guard 3 | . . . . . . . . . . . . . . . . . . . . . . . . . . . . . . . . . . . 3 . . . M Guard 2 | . . . . . . . . . . . . . . . . . . . . . . . . . . . . . . . . . . . . . 2 . Enhanced Grunt 17 | . . . . . . . . . . . . . . . . . . . . . . . . . . . . . . . . . . . . . . 17 Enhanced Sentry 2 | . . . . . . . . . . . . . . . . . . . . . . . . . . . . . . . . . . . . . . 2 Enhanced Hunter 8 | . . . . . . . . . . . . . . . . . . . . . . . . . . . . . . . . . . . . . . 8 Tracker 8 | . . . . . . . . . . . . . . . . . . . . . . . . . . . . . . . . . . . 8 . . . Combat Programmer 10 | . . . . . . . . . . . . . . . . . . . . . . . . . . . . . . . . . . . 8 . 2 . Executioner 2 | . . . . . . . . . . . . . . . . . . . . . . . . . . . . . . . . . . . 2 . . . Assembled 5 | . . 5 . . . . . . . . . . . . . . . . . . . . . . . . . . . . . . . . . . . . Surgeon 4 | . . . . . . . . . . . . . . . . . . . . . . . . . . 4 . . . . . . . . . . . . Wasp 7 | . . . . . . . . . . . . . . . . . . . . . . . . . . 7 . . . . . . . . . . . . Thug 11 | . . . . . . . . . . 1 . . . . . . . . . . 2 1 . . . 7 . . . . . . . . . . . . Butcher 3 | . . . . . . . . . . 1 . . . . . . . . . . . 2 . . . . . . . . . . . . . . . . Martyr 2 | . . . . . . . . . . . . . . . . . . . . . . . . . . 2 . . . . . . . . . . . . Mutant 1 | . . . . . . . . . . 1 . . . . . . . . . . . . . . . . . . . . . . . . . . . . Best Kill Streak 12 | 1 3 5 . 4 10 4 . 5 1 1 2 . 2 1 1 4 6 2 1 2 5 3 2 5 2 . 4 12 4 2 2 4 4 4 10 2 10 6 Combat Bots Only 12 | . 3 3 . 4 9 4 . 5 1 1 2 . 2 1 1 1 6 2 1 2 4 3 2 2 2 . 3 12 4 2 2 3 4 3 9 2 10 6 Max Kills in Single Turn 5 | 1 2 3 . 3 2 3 . 2 1 1 1 . 1 1 1 2 3 2 1 1 3 3 1 5 1 1 3 3 2 1 1 1 1 1 2 1 2 2 Gunslinging 1 | . . . . . . . . 1 . . . . . . . . . . . . . . . . . . . . 1 . . . . . 1 . 1 . Exploded 3 | . . 2 . 3 2 3 . 2 . . . . . . . . 3 . . . 1 3 . . . . 3 3 . . . . . . . . . . Melee 1 | . . . . . . . . . . . . . . . . . . . . . . . . . . . . . . . . . . . . . 1 . Uniques/NPCs Destroyed 10 | . . . . . . . . . . . . . . . . . . . . . . 1 . . . . . . . . . . . . . . 2 7 A7 (-5/Cetus) MAIN.C Shell (-1/Command) MAIN.C (-1/Command) A8 (-1/Access_0) A6 (-1/Access_0) A5 (-1/Access_0) A4 (-1/Access_0) A2 (-1/Access_0) A3 (-1/Access_0) Architect (-1/Access_0) Combat | -11 -10 -10 -10 -9 -8 -8 -8 -8 -7 -7 -7 -7 -6 -6 -6 -6 -6 -5 -5 -5 -5 -5 -5 -5 -4 -4 -4 -4 -4 -4 -3 -3 -2 -2 -2 -1 -1 -1 -------- Run | Scr Mat Min Exi Min Mat Gar Mat Gar Fac Low Low Dat Pro Fac Was Fac Gar Fac Was Fac Ext Cet Arc Hub Fac Was Fac Gar Fac Gar Res Tes Res Qua Sec Acc Com Ac0 Damage Taken 47934 | . 537 423 . 57 1501 622 14 667 153 249 . . 528 92 . 69 2860 97 . 607 1603 203 444 1624 363 . 1846 899 1223 598 468 334 374 1535 12185 702 3243 11814 Core 2491 | . 64 91 . 23 267 49 . 43 . . . . 20 30 . . 154 . . 43 48 . . 40 2 . 90 78 19 . 32 5 . 106 522 15 62 688 Absorbed by Shields 26348 | . . . . . . . . 13 . . . . . . . . 40 . . . 42 119 . . . . . 281 297 109 305 50 349 1220 8621 672 2792 11438 Reduced by Siege Mode 2339 | . . . . . . . . . . . . . . . . . 115 1 . 13 120 8 27 76 1 . 59 59 68 37 29 24 26 97 780 . 98 701 Redirected to Core 118 | . . . . . . . . . . . . . . . . . . . . . . . . . . . . . . . . . . . 118 . . . Core Remaining (%) 69 | 100 . . . 28 . . . 34 . . . . 97 . . . 78 . . . . . . 86 . . . . . 83 . 97 . . 64 . . 26 Volleys Fired 2551 | 2 53 26 . 3 88 59 . 41 5 14 12 . 100 36 78 35 87 15 33 38 82 37 14 111 36 104 88 34 101 22 27 121 38 153 429 12 131 286 Largest 6 | 2 2 2 . 1 3 3 . 3 3 3 3 . 3 3 3 3 3 3 3 3 3 3 3 3 3 2 3 3 3 3 3 3 3 3 3 4 5 6 Hottest 490 | 80 110 100 . 33 146 125 . 84 84 84 84 . 93 90 84 153 121 165 101 246 99 162 105 162 105 88 110 103 180 105 180 240 240 190 190 280 268 490 Shots Fired 5016 | 4 94 37 . 3 230 80 . 79 15 27 21 . 131 40 185 63 156 21 67 84 190 77 42 169 46 124 128 58 189 28 46 175 73 280 739 30 344 941 Gun 3272 | 4 56 23 . . 214 23 . 60 15 19 18 . 55 6 171 38 97 3 61 39 162 42 42 54 43 107 77 43 133 15 30 85 55 180 517 20 271 494 Cannon 1556 | . 30 . . . 3 25 . 4 . 7 3 . 76 33 8 25 46 17 . 45 9 34 . 112 . 16 50 6 52 11 16 87 18 93 208 10 65 447 Launcher 104 | . . 12 . 3 8 32 . 15 . . . . . . . . 13 . . . 1 1 . . . . 1 9 . 2 . . . . . . 7 . Special 84 | . 8 2 . . 5 . . . . 1 . . . 1 6 . . 1 6 . 18 . . 3 3 1 . . 4 . . 3 . 7 14 . 1 . Kinetic 3267 | . 6 12 . . 136 23 . 60 15 19 18 . 55 6 171 38 104 3 61 39 162 42 42 40 16 107 60 43 133 15 30 84 53 180 517 16 191 770 Thermal 945 | 2 69 13 . . 80 . . . . . . . 76 33 . 21 . 11 . 11 9 . . 55 27 . 40 . 41 . 16 82 19 93 103 10 65 69 Explosive 42 | . . 12 . 3 8 . . . . . . . . . . . 13 . . . 1 1 . . . . 1 3 . . . . . . . . . . Electromagnetic 507 | 2 19 . . . 6 57 . 19 . 7 3 . . . 8 4 39 6 . 34 . 34 . 71 . 16 27 12 11 13 . 6 1 . 105 . 7 . Slashing 186 | . . . . . . . . . . . . . . . . . . . . . . . . . . . . . . . . . . . . 4 80 102 Robot Hit Streak 90 | 3 13 5 . 2 20 9 . 8 5 7 9 . 28 4 28 30 48 8 20 15 48 56 25 24 15 19 29 38 90 8 15 29 30 42 79 27 73 78 Robot Miss Streak 9 | . 2 2 . . 5 1 . 2 1 2 1 . 2 2 2 1 4 3 2 2 9 1 1 4 1 3 2 1 3 1 1 3 2 2 6 1 3 5 Penetration Max 3 | . . . . . . . . 1 . . . . 1 . . 1 1 1 . 1 1 . . 1 1 3 1 1 1 . . . 1 1 2 . . 1 Secondary Targets 53 | . 1 . . . 1 1 . 3 . . . . 1 . . . 3 . 1 . 4 . . 1 . . 1 . 6 . 1 4 2 3 10 . 3 7 Max Gunslinging Chain 2 | . 1 . . . 1 1 . 1 . . . . 1 . . . 1 . 1 . 1 . . 1 . . 1 . 2 . 1 1 1 1 1 . 1 1 Shots Hit Robots 3460 | 3 58 20 . 1 129 39 . 43 10 16 10 . 31 5 152 38 122 9 53 61 149 65 37 90 14 101 72 40 126 14 20 102 46 186 543 12 303 740 Core Hits 1642 | 3 25 21 . 6 66 37 . 26 4 10 4 . 11 2 24 20 83 10 10 20 71 20 13 33 6 59 36 50 50 10 10 33 22 55 202 12 159 419 Critical Hits 292 | . . . . . . . . 1 . . . . 2 . 3 1 2 . 8 4 17 4 4 6 3 33 10 6 15 1 3 6 1 5 18 . 15 124 Critical Kills 64 | . . . . . . . . . . . . . . . . 1 . . 3 . 4 1 2 2 3 13 4 2 4 1 1 3 . 2 7 . 5 6 Critical Parts Destroyed 156 | . . . . . . . . 1 . . . . 2 . . . 1 . 2 4 12 3 2 4 . 17 6 4 11 . . 3 1 3 9 . 6 65 Melee Attacks 72 | . . . . . . . . . . 5 2 . 18 . . . . . . . . . . . . . . . . . . . . . . . 47 . Impact 5 | . . . . . . . . . . 5 . . . . . . . . . . . . . . . . . . . . . . . . . . . . Slashing 67 | . . . . . . . . . . . 2 . 18 . . . . . . . . . . . . . . . . . . . . . . . 47 . Piercing . | . . . . . . . . . . . . . . . . . . . . . . . . . . . . . . . . . . . . . . . Sneak Attacks . | . . . . . . . . . . . . . . . . . . . . . . . . . . . . . . . . . . . . . . . Combat Hostiles . | . . . . . . . . . . . . . . . . . . . . . . . . . . . . . . . . . . . . . . . Follow-up Attacks . | . . . . . . . . . . . . . . . . . . . . . . . . . . . . . . . . . . . . . . . Damage Inflicted 112967 | 50 917 838 . 424 2596 1674 43 1419 215 764 211 . 721 132 3333 1216 4411 265 1131 1959 4380 2254 929 3179 417 2641 3506 3341 3893 526 634 3684 1496 5886 17377 573 13763 22169 Guns 73991 | 38 474 203 . . 1724 194 . 719 215 236 132 . 683 107 3333 836 1748 127 1131 953 3601 964 929 890 379 2103 1557 985 3340 118 580 2309 1317 4377 14508 358 8277 14546 Cannons 24711 | . 340 . . . 51 205 . 25 . 173 79 . 38 . . 345 872 138 . 998 282 839 . 2007 . 538 844 238 497 367 . 1304 66 1505 2861 135 2341 7623 Explosions 10512 | . 76 550 . 416 755 1275 . 675 . 247 . . . . . . 1785 . . . 351 451 . 249 . . 1066 2118 . 41 . 55 . . . 80 322 . Melee 2919 | . . . . . . . . . . 108 . . . . . . . . . . . . . . . . . . . . . . . . . . 2811 . Ramming 834 | 12 27 85 . 8 66 . 43 . . . . . . 25 . 35 6 . . 8 146 . . 33 38 . 39 . 56 . 54 16 113 4 8 . 12 . Kinetic 75741 | . 69 112 . . 1060 194 . 719 215 236 132 . 683 107 3333 836 1906 127 1131 953 3601 964 929 890 379 2103 1557 985 3340 118 580 2309 1317 4377 14508 267 6629 19075 Thermal 10001 | 11 663 91 . . 682 39 . 94 . 247 . . 38 . . 239 . 30 . 90 282 164 . 29 . . 745 125 . . . 1121 . 1505 352 135 2341 978 Explosive 6054 | . . 550 . 416 690 . . . . . . . . . . . 1785 . . . 351 287 . . . . 362 1533 . . . . . . . 80 . . Electromagnetic 13563 | 27 158 . . . 98 1441 . 606 . 173 79 . . . . 106 714 108 . 908 . 839 . 2227 . 538 803 698 497 408 . 238 66 . 2509 . 322 . Impact 108 | . . . . . . . . . . 108 . . . . . . . . . . . . . . . . . . . . . . . . . . . . Slashing 6666 | . . . . . . . . . . . . . . . . . . . . . . . . . . . . . . . . . . . . 91 4459 2116 Piercing . | . . . . . . . . . . . . . . . . . . . . . . . . . . . . . . . . . . . . . . . Highest Corruption 20 | . . . . . . . . . 2 5 5 5 5 . 20 1 1 . . . . . . 3 . . . 1 6 6 1 7 3 5 . . . . Average Corruption 5 | . . . . . . . . . 2 4 5 5 5 . 12 1 1 . . . . . . 1 . . . 1 2 6 1 3 3 2 . . . . Corruption Purged 48 | . . . . . . . . . . . . . . . 26 . . . . . . . . . . . . 1 . . . 6 . 15 . . . . Effects 501 | . . . . . . . . . 2 46 23 4 58 . 212 2 4 . . . . . . . . . . 2 19 32 . 45 16 36 . . . . Message Errors 112 | . . . . . . . . . . 7 2 1 14 . 47 . . . . . . . . . . . . 1 5 8 . 14 2 11 . . . . Matter Fused 104 | . . . . . . . . . . 11 2 1 19 . 38 . . . . . . . . . . . . . 5 11 . 4 6 7 . . . . Heat Flow Errors 39 | . . . . . . . . . 1 5 3 . 1 . 18 . . . . . . . . . . . . . 1 2 . 5 1 2 . . . . Energy Discharges 67 | . . . . . . . . . . 9 6 2 4 . 24 2 . . . . . . . . . . . . 3 2 . 9 . 6 . . . . Data Loss (minor) 59 | . . . . . . . . . 1 7 5 . 5 . 18 . 3 . . . . . . . . . . . 3 5 . 6 2 4 . . . . Data Loss (major) 20 | . . . . . . . . . . 3 3 . 2 . 11 . . . . . . . . . . . . . . 1 . . . . . . . . Misfires 18 | . . . . . . . . . . 3 1 . 4 . 9 . . . . . . . . . . . . . . 1 . . . . . . . . Alerts 3 | . . . . . . . . . . . . . . . 3 . . . . . . . . . . . . . . . . . . . . . . . Misdirections 3 | . . . . . . . . . . . . . . . 3 . . . . . . . . . . . . . . . . . . . . . . . Targeting Errors 63 | . . . . . . . . . . 1 1 . 6 . 36 . 1 . . . . . . . . . . . 2 1 . 5 4 6 . . . . Weapon Failures 13 | . . . . . . . . . . . . . 3 . 5 . . . . . . . . . . . . 1 . 1 . 2 1 . . . . . Overload Shots 3 | . . . . . . . . . . . . . . . . . . . . . . . . . . . . . . . . 1 2 . . . . . Effects 1 | . . . . . . . . . . . . . . . . . . . . . . . . . . . . . . . . . 1 . . . . . Heat Surge 1 | . . . . . . . . . . . . . . . . . . . . . . . . . . . . . . . . . 1 . . . . . Overflow Damage 2318 | . . 27 . . 76 28 . 16 . 53 . . . . . 1 85 . . 34 78 47 . 91 . . 159 276 133 . . 66 . 175 152 22 772 27 Projectiles 789 | . . . . . . . . . . . . . . . . 1 7 . . 34 6 8 . 83 . . 11 . 106 . . 66 . 175 152 . 113 27 Explosions 759 | . . 20 . . 76 28 . 16 . . . . . . . . 78 . . . 48 39 . 8 . . 148 276 . . . . . . . 22 . . Melee 770 | . . 7 . . . . . . . 53 . . . . . . . . . . 24 . . . . . . . 27 . . . . . . . 659 . Knockbacks 74 | . . . . . 1 . . . . . . . . . . . 2 . . . . . . . 2 . . . . . 1 . . . . . . 68 Impact 4 | . . . . . 1 . . . . . . . . . . . . . . . . . . . 2 . . . . . 1 . . . . . . . Kinetic 69 | . . . . . . . . . . . . . . . . . 2 . . . . . . . . . . . . . . . . . . . . 67 Secondary 1 | . . . . . . . . . . . . . . . . . . . . . . . . . . . . . . . . . . . . . . 1 Self-Inflicted Damage 484 | . 24 122 . 17 45 47 . 12 . . . . . . . . 66 . . . 105 . . 7 . . . 29 . . . 10 . . . . . . Shots 27 | . 1 4 . 1 1 7 . 1 . . . . . . . . 4 . . . 1 . . 1 . . . 5 . . . 1 . . . . . . Rammed 56 | 9 5 5 . 3 4 . 1 . . . . . . 2 . 2 1 . . 1 4 . . 2 3 . 2 . 2 . 2 1 5 . 1 . 1 . Targets Rammed 63 | 10 5 5 . 3 7 . 1 . . . . . . 2 . 3 1 . . 1 4 . . 2 3 . 2 . 2 . 2 1 6 1 1 . 1 . Kicked . | . . . . . . . . . . . . . . . . . . . . . . . . . . . . . . . . . . . . . . . Crushed 7 | 1 . . . . 3 . . . . . . . . . . 1 . . . . . . . . . . . . . . . . 1 1 . . . . Highest Temperature 649 | 18 217 236 . 5 649 99 . 117 236 278 232 . 172 6 280 256 32 9 153 324 267 18 . 240 . . 12 . 288 280 24 523 169 86 36 400 324 230 Average Temperature 78 | 12 68 93 . 3 109 27 . 37 56 76 54 . 51 2 98 84 10 6 53 59 93 7 . 53 . . 5 . 91 89 7 116 84 86 4 142 110 93 Received Heat Transfer 4232 | . 279 108 . 9 441 207 9 234 . . . . 54 . . . 844 18 . 54 264 4 45 207 27 . 186 164 105 25 62 12 . 98 401 61 37 277 Effects 41 | . . . . . 25 . . . . . . . . . . . . . . 1 1 . . . . . . . . . . 14 . . . . . . Shutdowns 6 | . . . . . 3 . . . . . . . . . . . . . . 1 . . . . . . . . . . . 2 . . . . . . Energy Bleed 4 | . . . . . 2 . . . . . . . . . . . . . . . 1 . . . . . . . . . . 1 . . . . . . Interference 10 | . . . . . 4 . . . . . . . . . . . . . . . . . . . . . . . . . . 6 . . . . . . Matter Decay 2 | . . . . . 1 . . . . . . . . . . . . . . . . . . . . . . . . . . 1 . . . . . . Short Circuit 2 | . . . . . 2 . . . . . . . . . . . . . . . . . . . . . . . . . . . . . . . . . Damage (minor) 1 | . . . . . 1 . . . . . . . . . . . . . . . . . . . . . . . . . . . . . . . . . Damage (major) 14 | . . . . . 10 . . . . . . . . . . . . . . . . . . . . . . . . . . 4 . . . . . . Damage (core) 2 | . . . . . 2 . . . . . . . . . . . . . . . . . . . . . . . . . . . . . . . . . Siege Activations 173 | . . . . . . . . . . . . . . . . 4 10 2 . 5 10 5 2 10 2 . 9 9 10 6 2 10 3 10 28 . 11 25 Total Turns 6065 | . . . . . . . . . . . . . . . . 38 188 9 . 94 189 86 42 185 48 . 108 112 156 202 40 222 128 304 839 . 2511 564 Longest Duration 2392 | . . . . . . . . . . . . . . . . 13 32 7 . 43 36 54 27 56 27 . 24 30 31 93 26 72 104 49 131 . 2392 104 Robots Corrupted 60 | . . . . . . 4 . 3 . 1 . . . . . . 2 1 . 5 . 6 . 9 . 2 4 5 2 1 . . . . 13 . 2 . Combat Hostiles 52 | . . . . . . 4 . 3 . . . . . . . . 2 1 . 5 . 4 . 8 . . 4 5 1 1 . . . . 12 . 2 . Parts Fried 125 | . 1 . . . . 11 . 1 . 1 1 . . . . . 6 . . 10 . 2 . 28 . 10 5 6 6 5 . 2 2 . 23 . 5 . Impact Corruptions 6 | . . 1 . . . . . . . 2 . . . . . . . . . . 2 . . . . . . . 1 . . . . . . . . . Robots Melted . | . . . . . . . . . . . . . . . . . . . . . . . . . . . . . . . . . . . . . . . Combat Hostiles . | . . . . . . . . . . . . . . . . . . . . . . . . . . . . . . . . . . . . . . . Parts Melted 27 | . 5 . . 1 3 . . . . . . . . . . 1 . . . . . . . . . . 2 . . . . 3 . 3 2 . 2 5 Heat Transferred 8636 | 25 1556 259 . . 1382 . . 50 . 200 . . 74 . . 296 . 37 . 111 166 100 . 37 . . 525 100 . . . 575 . 1147 296 111 813 776 Parts Sabotaged . | . . . . . . . . . . . . . . . . . . . . . . . . . . . . . . . . . . . . . . . Parts Stolen . | . . . . . . . . . . . . . . . . . . . . . . . . . . . . . . . . . . . . . . . Parts Stripped . | . . . . . . . . . . . . . . . . . . . . . . . . . . . . . . . . . . . . . . . Power Chain Reactions 15 | . 1 . . . 1 5 . 2 . 2 . . . . . . . . . . . 1 . . . . . 1 . . . 2 . . . . . . Missiles Intercepted . | . . . . . . . . . . . . . . . . . . . . . . . . . . . . . . . . . . . . . . . Alert | -11 -10 -10 -10 -9 -8 -8 -8 -8 -7 -7 -7 -7 -6 -6 -6 -6 -6 -5 -5 -5 -5 -5 -5 -5 -4 -4 -4 -4 -4 -4 -3 -3 -2 -2 -2 -1 -1 -1 ------- Run | Scr Mat Min Exi Min Mat Gar Mat Gar Fac Low Low Dat Pro Fac Was Fac Gar Fac Was Fac Ext Cet Arc Hub Fac Was Fac Gar Fac Gar Res Tes Res Qua Sec Acc Com Ac0 Peak Influence 1168 | 10 154 208 . 200 336 1168 569 911 478 . . . . 97 15 92 919 492 83 118 385 786 400 514 341 4 308 632 356 309 339 229 189 270 634 319 250 . Initial 569 | . 6 52 . . . 150 569 282 478 . . . . 54 . . . 482 81 . . 124 288 17 251 2 . 114 331 142 173 105 81 . 84 272 83 . Average 189 | 2 33 50 . 41 131 654 532 709 400 . . . . 32 1 37 570 393 54 35 168 494 240 82 195 1 147 476 212 221 208 102 90 90 242 230 140 . Maximum Alert Level 4 | . . 1 . 1 1 4 2 3 2 . . . . . . . 3 2 . . 1 3 2 2 1 . 1 2 1 1 1 1 . 1 2 1 2 . Low Security (%) 54 | 100 100 82 . 87 77 6 . . . . . . . 100 100 100 20 . 100 100 52 7 21 97 55 100 71 7 55 45 57 92 100 93 40 36 5 . Level 1 26 | . . 17 . 12 22 18 . 12 50 . . . . . . . 7 56 . . 47 20 47 . 44 . 28 14 44 54 42 7 . 6 44 63 53 . Level 2 15 | . . . . . . 30 100 42 49 . . . . . . . 24 43 . . . 53 30 2 . . . 77 . . . . . . 14 . 40 . Level 3 3 | . . . . . . 38 . 45 . . . . . . . . 47 . . . . 17 . . . . . . . . . . . . . . . . Level 4 . | . . . . . . 6 . . . . . . . . . . . . . . . . . . . . . . . . . . . . . . . . Level 5 . | . . . . . . . . . . . . . . . . . . . . . . . . . . . . . . . . . . . . . . . High Security . | . . . . . . . . . . . . . . . . . . . . . . . . . . . . . . . . . . . . . . . Max Security . | . . . . . . . . . . . . . . . . . . . . . . . . . . . . . . . . . . . . . . . Squads Dispatched 94 | . 2 . . . 1 . . . 3 . . . . 1 . 4 . 4 . 2 1 . . 4 2 . 6 . 9 . 2 6 2 9 32 1 3 . Investigation 6 | . 2 . . . . . . . . . . . . . . . . . . . 1 . . 1 . . 1 . . . . . . . 1 . . . Extermination 57 | . . . . . . . . . 3 . . . . 1 . 4 . 1 . 2 . . . 2 2 . 4 . 7 . 1 6 1 8 12 1 2 . Reinforcement 11 | . . . . . 1 . . . . . . . . . . . . . . . . . . 1 . . 1 . 2 . 1 . . . 4 . 1 . Assault 1 | . . . . . . . . . . . . . . . . . . . . . . . . . . . . . . . . . . 1 . . . . Garrison 4 | . . . . . . . . . . . . . . . . . . 3 . . . . . . . . . . . . . . 1 . . . . . Intercept 15 | . . . . . . . . . . . . . . . . . . . . . . . . . . . . . . . . . . . 15 . . . Construction Impeded 3 | . . . . . . . . . . . . . . . . . . . . . . . . 1 . . 1 . . . . . . . 1 . . . Haulers Reinforced . | . . . . . . . . . . . . . . . . . . . . . . . . . . . . . . . . . . . . . . . Stealth | -11 -10 -10 -10 -9 -8 -8 -8 -8 -7 -7 -7 -7 -6 -6 -6 -6 -6 -5 -5 -5 -5 -5 -5 -5 -4 -4 -4 -4 -4 -4 -3 -3 -2 -2 -2 -1 -1 -1 --------- Run | Scr Mat Min Exi Min Mat Gar Mat Gar Fac Low Low Dat Pro Fac Was Fac Gar Fac Was Fac Ext Cet Arc Hub Fac Was Fac Gar Fac Gar Res Tes Res Qua Sec Acc Com Ac0 Distress Signals 35 | . 3 . . . 3 . . . . . . . . . . . 4 . . . 2 2 . 1 . . . . . . . . . 1 2 . 17 . Communications Jammed 62 | . . . . . . . . . . . . . . . . . . . . . . . . . . . . . . . . 14 . 2 46 . . . Distress Signals 62 | . . . . . . . . . . . . . . . . . . . . . . . . . . . . . . . . 14 . 2 46 . . . Times Spotted 723 | . 17 19 . 7 45 29 1 22 2 4 4 . 8 1 6 6 37 6 6 12 40 22 3 49 6 . 20 22 31 6 9 26 11 44 101 13 35 53 Peak Tracking Total 19 | . 3 17 . 4 7 3 1 6 1 2 3 . 4 1 1 2 8 2 2 3 5 6 1 19 3 . 6 7 5 3 3 4 4 4 7 9 8 5 Tactical Retreats 54 | . 1 4 . . 4 1 . 3 . . . . . . . . 6 . . . 15 1 . 6 . . 2 2 . 1 . 2 1 2 3 . . . Traps | -11 -10 -10 -10 -9 -8 -8 -8 -8 -7 -7 -7 -7 -6 -6 -6 -6 -6 -5 -5 -5 -5 -5 -5 -5 -4 -4 -4 -4 -4 -4 -3 -3 -2 -2 -2 -1 -1 -1 ------- Run | Scr Mat Min Exi Min Mat Gar Mat Gar Fac Low Low Dat Pro Fac Was Fac Gar Fac Was Fac Ext Cet Arc Hub Fac Was Fac Gar Fac Gar Res Tes Res Qua Sec Acc Com Ac0 Traps Triggered 72 | . . . . . . 14 . 8 1 . . . . 1 . 1 6 1 . 2 1 . . 1 1 . 2 6 2 2 . 1 . 1 1 4 16 . Indirectly 6 | . . . . . . 5 . . . . . . . . . . . . . . . . . 1 . . . . . . . . . . . . . . Trap Hack Attempts . | . . . . . . . . . . . . . . . . . . . . . . . . . . . . . . . . . . . . . . . Triggered . | . . . . . . . . . . . . . . . . . . . . . . . . . . . . . . . . . . . . . . . Disarmed . | . . . . . . . . . . . . . . . . . . . . . . . . . . . . . . . . . . . . . . . Reprogrammed . | . . . . . . . . . . . . . . . . . . . . . . . . . . . . . . . . . . . . . . . Reused . | . . . . . . . . . . . . . . . . . . . . . . . . . . . . . . . . . . . . . . . Traps Extracted . | . . . . . . . . . . . . . . . . . . . . . . . . . . . . . . . . . . . . . . . Installed . | . . . . . . . . . . . . . . . . . . . . . . . . . . . . . . . . . . . . . . . Triggered 3 | . . . . . . 1 . . . . . . . . . . . . . . . . . 1 . . . . . . . . . . 1 . . . Machines | -11 -10 -10 -10 -9 -8 -8 -8 -8 -7 -7 -7 -7 -6 -6 -6 -6 -6 -5 -5 -5 -5 -5 -5 -5 -4 -4 -4 -4 -4 -4 -3 -3 -2 -2 -2 -1 -1 -1 ---------- Run | Scr Mat Min Exi Min Mat Gar Mat Gar Fac Low Low Dat Pro Fac Was Fac Gar Fac Was Fac Ext Cet Arc Hub Fac Was Fac Gar Fac Gar Res Tes Res Qua Sec Acc Com Ac0 Machines Disabled 123 | . 3 . . . 2 5 . 2 1 . . . . 2 . . 4 . . . 6 1 1 12 . . 11 7 1 3 2 5 1 10 21 2 5 16 Max in Single Turn 7 | . 1 . . . 1 1 . 1 1 . . . . 1 . . 1 . . . 1 1 1 7 . . 6 2 1 2 1 2 1 1 1 1 2 1 Garrison Access 3 | . . . . . . . . . . . . . . . . . . . . . . . . 1 . . . . . . . . 1 1 . . . . Garrison Relay 13 | . . . . . . 5 . 2 . . . . . . . . 2 . . . . . . . . . . 3 . 1 . . . . . . . . Phase Generator 1 | . . . . . . . . . . . . . . . . . . . . . . . . . . . . . . . . . . . . . 1 . Network Hub 2 | . . . . . . . . . . . . . . . . . . . . . . . . 2 . . . . . . . . . . . . . . Machines Sabotaged . | . . . . . . . . . . . . . . . . . . . . . . . . . . . . . . . . . . . . . . . Garrisons Compromised . | . . . . . . . . . . . . . . . . . . . . . . . . . . . . . . . . . . . . . . . Overloaded Fab Kills . | . . . . . . . . . . . . . . . . . . . . . . . . . . . . . . . . . . . . . . . Fab Network Shutdowns . | . . . . . . . . . . . . . . . . . . . . . . . . . . . . . . . . . . . . . . . Hacking | -11 -10 -10 -10 -9 -8 -8 -8 -8 -7 -7 -7 -7 -6 -6 -6 -6 -6 -5 -5 -5 -5 -5 -5 -5 -4 -4 -4 -4 -4 -4 -3 -3 -2 -2 -2 -1 -1 -1 --------- Run | Scr Mat Min Exi Min Mat Gar Mat Gar Fac Low Low Dat Pro Fac Was Fac Gar Fac Was Fac Ext Cet Arc Hub Fac Was Fac Gar Fac Gar Res Tes Res Qua Sec Acc Com Ac0 Machines Accessed 106 | . 9 1 1 . 11 . 2 . . 1 1 4 1 1 . 2 . . . 3 5 1 . 7 2 . 5 . 7 . 2 8 4 10 16 1 . 1 Terminals 77 | . 7 1 . . 8 . 1 . . . . . 1 1 . 1 . . . 3 5 1 . 6 1 . 3 . 5 . 2 5 3 8 14 1 . . Fabricators 2 | . . . . . . . . . . . . . . . . . . . . . . . . . . . 1 . . . . 1 . . . . . . Repair Stations 6 | . . . . . 1 . . . . . . . . . . . . . . . . . . . . . . . 1 . . 2 . 1 1 . . . Recycling Units 2 | . 2 . . . . . . . . . . . . . . . . . . . . . . . . . . . . . . . . . . . . . Scanalyzers 3 | . . . . . 1 . . . . . . . . . . . . . . . . . . . . . . . . . . . . 1 1 . . . Garrison Access 8 | . . . . . 1 . 1 . . . . . . . . 1 . . . . . . . 1 1 . 1 . 1 . . . 1 . . . . . Total Hacks 344 | . 30 4 1 . 27 . 4 . . 1 1 24 1 3 . 5 . . . 6 8 1 . 15 5 . 19 . 36 . 7 31 10 42 56 5 . 2 Successful 171 | . 9 2 1 . 14 . 2 . . 1 1 24 1 . . 3 . . . 2 3 . . 7 3 . 9 . 18 . 2 16 5 20 25 1 . 2 Failed 172 | . 20 2 . . 13 . 2 . . . . . . 3 . 2 . . . 4 5 1 . 8 2 . 10 . 18 . 5 15 5 22 31 4 . . Catastrophic 24 | . 1 . . . . . 1 . . . . . . . . 1 . . . 2 1 1 . 1 . . 1 . 2 . . 3 . 5 3 2 . . Database Lockouts 1 | . 1 . . . . . . . . . . . . . . . . . . . . . . . . . . . . . . . . . . . . . Manual 168 | . 26 4 . . 14 . 3 . . . . . . 3 . 3 . . . 1 5 1 . 9 2 . 12 . 21 . 3 13 5 18 24 1 . . Terminals 262 | . 28 4 . . 21 . 3 . . . . . 1 3 . 3 . . . 6 8 1 . 14 3 . 16 . 26 . 7 19 9 38 47 5 . . Fabricators 5 | . . . . . . . . . . . . . . . . . . . . . . . . . . . 2 . . . . 3 . . . . . . Repair Stations 28 | . . . . . 2 . . . . . . . . . . . . . . . . . . . . . . . 9 . . 9 . 2 6 . . . Recycling Units 2 | . 2 . . . . . . . . . . . . . . . . . . . . . . . . . . . . . . . . . . . . . Scanalyzers 8 | . . . . . 3 . . . . . . . . . . . . . . . . . . . . . . . . . . . . 2 3 . . . Garrison Access 10 | . . . . . 1 . 1 . . . . . . . . 2 . . . . . . . 1 2 . 1 . 1 . . . 1 . . . . . Terminal Hacks 96 | . 7 1 1 . 7 . 1 . . 1 1 24 1 . . 1 . . . 2 1 . . 2 1 . 5 . 6 . 1 4 1 12 13 1 . 2 Record 18 | . . . 1 . . . . . . 1 . 11 1 . . . . . . . . . . . . . . . 1 . . . . 3 . . . . Part Schematic 9 | . 1 . . . . . . . . . . 5 . . . . . . . . . . . . 1 . 1 . . . . 1 . . . . . . Robot Schematic 5 | . . . . . . . . . . . . 5 . . . . . . . . . . . . . . . . . . . . . . . . . . Robot Analysis 5 | . 1 1 . . . . . . . . . . . . . . . . . . . . . 1 . . . . . . . . . . 2 . . . Prototype ID Bank 8 | . 1 . . . . . . . . . . 3 . . . . . . . . . . . . . . . . . . . . . 3 1 . . . Open Door 7 | . . . . . . . . . . . 1 . . . . . . . . 1 . . . . . . . . . . . . . . 5 . . . Branch Access Points 4 | . . . . . . . . . . . . . . . . 1 . . . 1 . . . . . . . . . . 1 . 1 . . . . . Terminal Index 2 | . . . . . . . . . . . . . . . . . . . . . . . . . . . . . 1 . . . . 1 . . . . Fabricator Index 2 | . . . . . . . . . . . . . . . . . . . . . . . . . . . 1 . 1 . . . . . . . . . Garrison Index 1 | . . . . . . . . . . . . . . . . . . . . . . . . 1 . . . . . . . . . . . . . . Alert Level 1 | . . . . . . . . . . . . . . . . . . . . . . . . . . . . . . . . . . . 1 . . . Unreport Threat 12 | . . . . . 2 . 1 . . . . . . . . . . . . . 1 . . . . . 1 . . . . 1 . 2 3 1 . . Locate Traps 9 | . 1 . . . . . . . . . . . . . . . . . . . . . . . . . . . 2 . . 2 . 3 1 . . . Transport Status 2 | . 1 . . . 1 . . . . . . . . . . . . . . . . . . . . . . . . . . . . . . . . . Recall Investigation 1 | . . . . . . . . . . . . . . . . . . . . . . . . . . . 1 . . . . . . . . . . . Recall Extermination 1 | . . . . . . . . . . . . . . . . . . . . . . . . . . . . . 1 . . . . . . . . . Hauler Manifests 2 | . 1 . . . 1 . . . . . . . . . . . . . . . . . . . . . . . . . . . . . . . . . Zone Layout 5 | . 1 . . . 3 . . . . . . . . . . . . . . . . . . . . . 1 . . . . . . . . . . . Gate Test 138-A 1 | . . . . . . . . . . . . . . . . . . . . . . . . . . . . . . . . . . . . . . 1 Gate Test 138-END 1 | . . . . . . . . . . . . . . . . . . . . . . . . . . . . . . . . . . . . . . 1 Fabricator Hacks 4 | . . . . . . . . . . . . . . . . . . . . . . . . . . . 2 . . . . 2 . . . . . . Load Schematic 2 | . . . . . . . . . . . . . . . . . . . . . . . . . . . 1 . . . . 1 . . . . . . Build 2 | . . . . . . . . . . . . . . . . . . . . . . . . . . . 1 . . . . 1 . . . . . . Repair Station Hacks 14 | . . . . . 2 . . . . . . . . . . . . . . . . . . . . . . . 5 . . 3 . 2 2 . . . Scan Component 10 | . . . . . 1 . . . . . . . . . . . . . . . . . . . . . . . 3 . . 3 . 1 2 . . . Repair 4 | . . . . . 1 . . . . . . . . . . . . . . . . . . . . . . . 2 . . . . 1 . . . . Recycling Unit Hacks . | . . . . . . . . . . . . . . . . . . . . . . . . . . . . . . . . . . . . . . . Scanalyzer 5 | . . . . . 2 . . . . . . . . . . . . . . . . . . . . . . . . . . . . . 3 . . . Insert Component 4 | . . . . . 1 . . . . . . . . . . . . . . . . . . . . . . . . . . . . . 3 . . . Analyze 1 | . . . . . 1 . . . . . . . . . . . . . . . . . . . . . . . . . . . . . . . . . Garrison Access Hacks 10 | . . . . . 1 . 1 . . . . . . . . 2 . . . . . . . 1 2 . 1 . 1 . . . 1 . . . . . Unlock Access 6 | . . . . . 1 . 1 . . . . . . . . 1 . . . . . . . . 1 . 1 . 1 . . . . . . . . . Seal Access 2 | . . . . . . . . . . . . . . . . . . . . . . . . 1 . . . . . . . . 1 . . . . . Coupler Status 2 | . . . . . . . . . . . . . . . . 1 . . . . . . . . 1 . . . . . . . . . . . . . Unauthorized Hacks 42 | . 2 1 . . 2 . . . . . . . . . . . . . . . 2 . . 4 . . 1 . 6 . 1 7 3 6 7 . . . Terminals 39 | . . 1 . . 2 . . . . . . . . . . . . . . . 2 . . 4 . . 1 . 6 . 1 6 3 6 7 . . . Track 13 | . . 1 . . 1 . . . . . . . . . . . . . . . . . . 1 . . . . 1 . . 4 . 3 2 . . . Assimilate 9 | . . . . . . . . . . . . . . . . . . . . . 2 . . 1 . . . . 2 . . . 2 . 2 . . . Botnet 14 | . . . . . 1 . . . . . . . . . . . . . . . . . . 2 . . 1 . 2 . 1 2 1 2 2 . . . Operators 3 | . . . . . . . . . . . . . . . . . . . . . . . . . . . . . 1 . . . . 1 1 . . . Fabricators 1 | . . . . . . . . . . . . . . . . . . . . . . . . . . . . . . . . 1 . . . . . . Prioritize 1 | . . . . . . . . . . . . . . . . . . . . . . . . . . . . . . . . 1 . . . . . . Repair Stations . | . . . . . . . . . . . . . . . . . . . . . . . . . . . . . . . . . . . . . . . Recycling Units 2 | . 2 . . . . . . . . . . . . . . . . . . . . . . . . . . . . . . . . . . . . . Tunnel 2 | . 2 . . . . . . . . . . . . . . . . . . . . . . . . . . . . . . . . . . . . . Scanalyzers . | . . . . . . . . . . . . . . . . . . . . . . . . . . . . . . . . . . . . . . . Garrison Access . | . . . . . . . . . . . . . . . . . . . . . . . . . . . . . . . . . . . . . . . Data Cores Recovered 4 | . . . . . . . . . . . . . . . . 1 . . . . 2 . . . . . . . . . . . . 1 . . . . Used 1 | . . . . . . . . . . . . . . . . . . . . . . . . . . . . . . . . . . 1 . . . . Hacking Detections 69 | . 7 1 . . 9 . 1 . . . . . . 1 . 2 . . . 2 4 2 . 5 1 . 3 . 5 . 2 3 2 7 11 1 . . Full Trace Events 1 | . . . . . . . . . . . . . . . . . . . . . . . . . . . . . . . . . . . 1 . . . Feedback Events . | . . . . . . . . . . . . . . . . . . . . . . . . . . . . . . . . . . . . . . . Feedback Blocked . | . . . . . . . . . . . . . . . . . . . . . . . . . . . . . . . . . . . . . . . Robot Schematics Acquired 5 | . . . . . . . . . . . . 5 . . . . . . . . . . . . . . . . . . . . . . . . . . Robots Built . | . . . . . . . . . . . . . . . . . . . . . . . . . . . . . . . . . . . . . . . Matter . | . . . . . . . . . . . . . . . . . . . . . . . . . . . . . . . . . . . . . . . Time . | . . . . . . . . . . . . . . . . . . . . . . . . . . . . . . . . . . . . . . . Total Robot Build Rating . | . . . . . . . . . . . . . . . . . . . . . . . . . . . . . . . . . . . . . . . Part Schematics Acquired 10 | . 1 . . . 1 . . . . . . 5 . . . . . . . . . . . . 1 . 1 . . . . 1 . . . . . . Parts Built 4 | . . . . . . . . . . . . . . . . . . . . . . . . . . . 2 . . . . 2 . . . . . . Matter 446 | . . . . . . . . . . . . . . . . . . . . . . . . . . . 168 . . . . 278 . . . . . . Time 111 | . . . . . . . . . . . . . . . . . . . . . . . . . . . 42 . . . . 69 . . . . . . Total Part Build Rating 26 | . . . . . . . . . . . . . . . . . . . . . . . . . . . 8 . . . . 18 . . . . . . Parts Repaired 4 | . . . . . 1 . . . . . . . . . . . . . . . . . . . . . . . 2 . . . . 1 . . . . Time 201 | . . . . . 80 . . . . . . . . . . . . . . . . . . . . . . . 59 . . . . 62 . . . . Parts Recycled . | . . . . . . . . . . . . . . . . . . . . . . . . . . . . . . . . . . . . . . . Recycled Matter . | . . . . . . . . . . . . . . . . . . . . . . . . . . . . . . . . . . . . . . . Retrieved Matter . | . . . . . . . . . . . . . . . . . . . . . . . . . . . . . . . . . . . . . . . Retrieved Components . | . . . . . . . . . . . . . . . . . . . . . . . . . . . . . . . . . . . . . . . Parts Scanalyzed 1 | . . . . . 1 . . . . . . . . . . . . . . . . . . . . . . . . . . . . . . . . . Part Schematics Acquired 1 | . . . . . 1 . . . . . . . . . . . . . . . . . . . . . . . . . . . . . . . . . Parts Damaged . | . . . . . . . . . . . . . . . . . . . . . . . . . . . . . . . . . . . . . . . Bothacking | -11 -10 -10 -10 -9 -8 -8 -8 -8 -7 -7 -7 -7 -6 -6 -6 -6 -6 -5 -5 -5 -5 -5 -5 -5 -4 -4 -4 -4 -4 -4 -3 -3 -2 -2 -2 -1 -1 -1 ------------ Run | Scr Mat Min Exi Min Mat Gar Mat Gar Fac Low Low Dat Pro Fac Was Fac Gar Fac Was Fac Ext Cet Arc Hub Fac Was Fac Gar Fac Gar Res Tes Res Qua Sec Acc Com Ac0 Used RIF Installer 5 | . . . . . . 1 . 1 . . . . . . . . 1 . . . . . . . . . . 1 . 1 . . . . . . . . Coupler Efficiency 1 | . . . . . . . . . . . . . . . . . . . . . . . . . . . . 1 . . . . . . . . . . Threat Obfuscator 1 | . . . . . . . . . . . . . . . . . 1 . . . . . . . . . . . . . . . . . . . . . Signal Jammer 1 | . . . . . . . . . . . . . . . . . . . . . . . . . . . . . . 1 . . . . . . . . Watcher Feeds 1 | . . . . . . . . 1 . . . . . . . . . . . . . . . . . . . . . . . . . . . . . . Robots Hacked 42 | . . . . . . . . . . 1 . . . 1 6 . . 1 6 . . . . 3 3 1 . . 2 . . 3 . 6 8 . 1 . Non-combat 18 | . . . . . . . . . . . . . . 1 . . . 1 . . . . . 3 1 1 . . 2 . . 1 . 6 1 . 1 . Combat 24 | . . . . . . . . . . 1 . . . . 6 . . . 6 . . . . . 2 . . . . . . 2 . . 7 . . . Robot Hacks Applied 46 | . . . . . . . . . . 1 . . . 1 6 . . 1 6 . . . . 3 3 1 . . 3 . . 3 . 6 11 . 1 . parse_system 2 | . . . . . . . . . . . . . . . . . . . . . . . . . . 1 . . . . . . . . 1 . . . find_chute 3 | . . . . . . . . . . . . . . 1 . . . 1 . . . . . . 1 . . . . . . . . . . . . . ignore_repairs 7 | . . . . . . . . . . . . . . . . . . . . . . . . 3 . . . . . . . 1 . 3 . . . . check_alert 1 | . . . . . . . . . . . . . . . . . . . . . . . . . . . . . 1 . . . . . . . . . purge_threat 4 | . . . . . . . . . . . . . . . . . . . . . . . . . . . . . 1 . . . . . 3 . . . block_reporting 4 | . . . . . . . . . . . . . . . . . . . . . . . . . . . . . . . . . . 3 . . 1 . map_route 1 | . . . . . . . . . . . . . . . . . . . . . . . . . . . . . 1 . . . . . . . . . disable_scanner 4 | . . . . . . . . . . . . . . . . . . . . . . . . . . . . . . . . 2 . . 2 . . . locate_prototypes 2 | . . . . . . . . . . . . . . . . . . . . . . . . . . . . . . . . . . . 2 . . . ignore_targets 12 | . . . . . . . . . . . . . . . 6 . . . 6 . . . . . . . . . . . . . . . . . . . overload_power 1 | . . . . . . . . . . . . . . . . . . . . . . . . . 1 . . . . . . . . . . . . . disable_weapons 1 | . . . . . . . . . . . . . . . . . . . . . . . . . . . . . . . . . . . 1 . . . overwrite_iff 3 | . . . . . . . . . . . . . . . . . . . . . . . . . 1 . . . . . . . . . 2 . . . formatsys_high 1 | . . . . . . . . . . 1 . . . . . . . . . . . . . . . . . . . . . . . . . . . . Relay Couplers Released 52 | . . . . . . 15 . 6 . . . . . . . 4 8 . . . . . . . . . . 13 . 5 . . . 1 . . . . Machine Destruction 48 | . . . . . . 15 . 6 . . . . . . . . 8 . . . . . . . . . . 13 . 5 . . . 1 . . . . Programmers 4 | . . . . . . . . . . . . . . . . 4 . . . . . . . . . . . . . . . . . . . . . . Attached 11 | . . . . . . . . 1 . 1 . . . . 1 . 1 . 1 . . . . . 1 . . 1 1 . . . 1 . 2 . . . Robots Rewired 7 | . . . . . . . . . . . . . . . . . . . . . 7 . . . . . . . . . . . . . . . . . Allies Hacked 1 | . . . . . . . . . . . . . . . . . . . . . . . . . . . . . . . . . 1 . . . . . Hacks Repelled . | . . . . . . . . . . . . . . . . . . . . . . . . . . . . . . . . . . . . . . . Allies | -11 -10 -10 -10 -9 -8 -8 -8 -8 -7 -7 -7 -7 -6 -6 -6 -6 -6 -5 -5 -5 -5 -5 -5 -5 -4 -4 -4 -4 -4 -4 -3 -3 -2 -2 -2 -1 -1 -1 -------- Run | Scr Mat Min Exi Min Mat Gar Mat Gar Fac Low Low Dat Pro Fac Was Fac Gar Fac Was Fac Ext Cet Arc Hub Fac Was Fac Gar Fac Gar Res Tes Res Qua Sec Acc Com Ac0 Total Allies 54 | . . 3 . . . . . . . 1 . . 1 . . . . . . . 16 5 . 1 1 20 . . 1 . . . 1 . 4 . . . Largest Group 20 | . . 3 3 3 2 . . . . 1 1 . 1 . . . . . . . 5 7 . 1 1 20 . . 1 . . . 1 . 1 . . . Highest-Rated Group 729 | . . 40 40 40 24 . . . . 21 21 . 94 . . . . . . . 268 657 . 10 56 729 . . 10 . . . 10 . 66 . . . Highest-Rated Ally 156 | . . 16 16 16 16 . . . . 21 21 . 94 . . . . . . . 156 156 . 10 56 50 . . 10 . . . 10 . 66 . . . Total Orders 8 | . . . . . . . . . . . . . . . . . . . . . 1 7 . . . . . . . . . . . . . . . . STAY 5 | . . . . . . . . . . . . . . . . . . . . . . 5 . . . . . . . . . . . . . . . . FOLLOW 1 | . . . . . . . . . . . . . . . . . . . . . . 1 . . . . . . . . . . . . . . . . GUARD 2 | . . . . . . . . . . . . . . . . . . . . . 1 1 . . . . . . . . . . . . . . . . Ally Attacks 249 | . . . . 6 13 . . . . . 11 . 23 . . . . . . . 66 121 . . 3 . . . . . . . . . 6 . . . Total Damage 5723 | . . . . 77 113 . . . . . 190 . 976 . . . . . . . 973 3049 . . 130 . . . . . . . . . 215 . . . Kills 39 | . . . . 2 . . . . . . . . 7 . . . . . . . 8 22 . . . . . . . . . . . . . . . . Allies Corrupted 5 | . . . . . . . . . . . . . . . . . . . . . . 2 . . . 2 . . . . . . 1 . . . . . Allies Melted 1 | . . . . . . . . . . . . . . . . . . . . . 1 . . . . . . . . . . . . . . . . . Intel | -11 -10 -10 -10 -9 -8 -8 -8 -8 -7 -7 -7 -7 -6 -6 -6 -6 -6 -5 -5 -5 -5 -5 -5 -5 -4 -4 -4 -4 -4 -4 -3 -3 -2 -2 -2 -1 -1 -1 ------- Run | Scr Mat Min Exi Min Mat Gar Mat Gar Fac Low Low Dat Pro Fac Was Fac Gar Fac Was Fac Ext Cet Arc Hub Fac Was Fac Gar Fac Gar Res Tes Res Qua Sec Acc Com Ac0 Robot Analysis Total 5 | . 1 1 . . . . . . . . . . . . . . . . . . . . . 1 . . . . . . . . . . 2 . . . Derelict Logs Recovered 6 | . . 2 . 1 . . . . . 1 . . 2 . . . . . . . . . . . . . . . . . . . . . . . . . Drone Launches . | . . . . . . . . . . . . . . . . . . . . . . . . . . . . . . . . . . . . . . . Drone Recoveries . | . . . . . . . . . . . . . . . . . . . . . . . . . . . . . . . . . . . . . . . Exploration | -11 -10 -10 -10 -9 -8 -8 -8 -8 -7 -7 -7 -7 -6 -6 -6 -6 -6 -5 -5 -5 -5 -5 -5 -5 -4 -4 -4 -4 -4 -4 -3 -3 -2 -2 -2 -1 -1 -1 ------------- Run | Scr Mat Min Exi Min Mat Gar Mat Gar Fac Low Low Dat Pro Fac Was Fac Gar Fac Was Fac Ext Cet Arc Hub Fac Was Fac Gar Fac Gar Res Tes Res Qua Sec Acc Com Ac0 Turns Passed 73411 | 128 1991 1418 378 581 2299 1642 105 1553 811 2081 849 185 2599 980 5405 1307 1727 925 597 1214 1966 616 1020 2116 899 928 1725 1337 2438 1087 702 2413 1206 3571 4851 550 11635 5576 Spaces Moved 28405 | 63 954 550 249 282 907 760 51 717 277 988 393 99 1106 420 443 622 724 449 243 539 843 221 113 843 311 376 727 450 902 312 277 826 505 1329 1830 289 4857 2558 Core 189 | . . . . . . . . . . . . . . . 164 . . . . . . . 25 . . . . . . . . . . . . . . . Treads 27449 | 57 917 73 2 282 907 760 51 717 277 988 393 99 1106 420 279 622 724 449 243 539 843 221 88 843 311 376 727 450 902 312 277 826 505 1329 1830 289 4857 2558 Legs 43 | 6 37 . . . . . . . . . . . . . . . . . . . . . . . . . . . . . . . . . . . . . Wheels 724 | . . 477 247 . . . . . . . . . . . . . . . . . . . . . . . . . . . . . . . . . . . Hover . | . . . . . . . . . . . . . . . . . . . . . . . . . . . . . . . . . . . . . . . Flight . | . . . . . . . . . . . . . . . . . . . . . . . . . . . . . . . . . . . . . . . Fastest Speed 100 | 120 120 140 100 200 180 183 183 183 203 203 183 183 180 200 180 180 180 180 180 160 180 180 180 180 180 180 180 195 195 195 187 187 177 172 155 167 147 155 Average Speed 197 | 156 177 145 144 200 185 183 183 188 203 203 202 184 204 200 1153 180 180 180 180 179 180 180 837 180 180 180 182 195 195 195 191 187 181 177 166 167 168 170 Slowest Speed 3150 | 160 180 180 200 200 200 183 183 203 203 203 203 203 220 200 2850 200 180 180 180 180 180 200 3150 180 180 180 195 195 195 195 195 187 187 200 185 167 200 172 Overloaded Moves . | . . . . . . . . . . . . . . . . . . . . . . . . . . . . . . . . . . . . . . . Propulsion Burnouts . | . . . . . . . . . . . . . . . . . . . . . . . . . . . . . . . . . . . . . . . Robots Hopped . | . . . . . . . . . . . . . . . . . . . . . . . . . . . . . . . . . . . . . . . Cave-ins Triggered . | . . . . . . . . . . . . . . . . . . . . . . . . . . . . . . . . . . . . . . . Teleports 3 | . . . . . . . . . . . . . . . . . . . . . . . . . . . . . . . . . . . 1 . 1 1 Exploration Rate (%) 54 | 4 82 95 53 51 73 84 6 72 10 89 50 69 99 9 72 13 79 15 85 11 81 58 74 73 8 96 21 58 29 48 11 83 17 90 80 7 92 90 Regions Visited 38 Branch Regions 16 Pre-discovered Areas 6 | . 2 1 1 . . . . . . . . 1 1 . . . . . . . . . . . . . . . . . . . . . . . . . Known Exits Taken 21 | . . . . . 1 . 1 . 1 1 1 1 1 . . 1 . . . 1 1 1 1 1 . . 1 . 1 . 1 1 1 1 1 1 . . Unknown Exits Taken 6 | 1 1 1 1 1 . . . . . . . . . . . . . . . . . . . . . . . . . . . . . . . . 1 . Scrap Searched 8 | . . 1 . . . . . . . 3 2 . 2 . . . . . . . . . . . . . . . . . . . . . . . . . Spaces Dug 517 | . 6 10 . 14 3 1 . . . 4 4 . 53 28 . 12 10 9 . 7 13 . . 50 15 . 31 . 41 . 14 51 17 41 45 6 16 16 Terrain Destroyed 1959 | . 11 74 . 34 74 10 . 7 1 7 5 . 96 31 5 17 161 10 2 14 24 64 12 218 22 1 96 12 74 1 15 197 23 55 91 24 99 372 Melee 36 | . . . . . . . . . . 4 2 . 18 . . . . . . . . . . . . . . . . . . . . . . . 12 . Projectile 1094 | . 8 2 . . 5 . . 3 1 3 3 . 78 31 5 17 5 10 2 14 11 30 12 58 22 1 49 1 74 1 15 69 23 55 91 7 16 372 AOE 829 | . 3 72 . 34 69 10 . 4 . . . . . . . . 156 . . . 13 34 . 160 . . 47 11 . . . 128 . . . 17 71 . Terrain Rammed 1 | . . . . . . . . . . . . . . . . . . . . . 1 . . . . . . . . . . . . . . . . . Walls Destroyed . | . . . . . . . . . . . . . . . . . . . . . . . . . . . . . . . . . . . . . . . Machines Disabled 1 | . . . . . . . . . . . . . . . . . . . . . 1 . . . . . . . . . . . . . . . . . Actions | -11 -10 -10 -10 -9 -8 -8 -8 -8 -7 -7 -7 -7 -6 -6 -6 -6 -6 -5 -5 -5 -5 -5 -5 -5 -4 -4 -4 -4 -4 -4 -3 -3 -2 -2 -2 -1 -1 -1 --------- Run | Scr Mat Min Exi Min Mat Gar Mat Gar Fac Low Low Dat Pro Fac Was Fac Gar Fac Was Fac Ext Cet Arc Hub Fac Was Fac Gar Fac Gar Res Tes Res Qua Sec Acc Com Ac0 Total 41914 | 80 1143 1126 269 293 1345 936 68 854 513 1032 425 102 1302 512 591 748 1013 553 350 703 1139 375 155 1272 607 503 1006 859 1426 759 403 1531 727 2302 3065 359 8150 3318 Wait 8077 | . 87 537 . 3 238 52 . 62 216 4 2 . 52 34 18 43 122 10 40 72 167 59 21 194 227 . 93 326 264 406 41 454 145 645 509 17 2700 217 Move 28374 | 62 953 549 248 281 907 759 51 716 276 987 392 98 1105 420 442 621 723 449 242 538 842 220 112 843 311 375 727 449 902 311 276 825 504 1328 1829 288 4856 2557 Hop . | . . . . . . . . . . . . . . . . . . . . . . . . . . . . . . . . . . . . . . . Pick Up 484 | 1 19 1 17 2 29 8 6 6 4 4 4 . 3 4 9 5 11 11 7 7 8 14 1 11 3 4 11 10 26 3 4 15 7 27 45 13 80 44 Fast Attach 349 | 1 3 . 1 . 8 . 1 2 . . 2 2 6 3 3 6 12 19 3 6 . 7 2 18 4 6 16 2 13 . 12 17 1 17 32 1 80 43 Attach 270 | . 4 2 . . 15 1 1 3 4 1 . . 2 3 1 3 4 5 3 2 3 2 . 11 8 . 9 5 17 1 2 13 6 14 36 10 41 38 Detach 153 | . . . . . 1 . . 1 1 1 1 . 1 . 5 3 3 10 . 3 1 2 . 12 3 1 12 1 14 . 7 9 . 6 19 3 19 14 Swap 743 | 4 8 5 1 1 19 18 1 4 6 13 6 . 8 6 14 20 20 10 7 22 27 13 2 45 7 5 27 12 52 13 17 44 14 67 115 3 24 63 Drop 681 | . 11 1 2 . 33 16 7 4 1 3 4 2 7 4 21 9 19 24 15 10 . 21 3 26 5 8 21 8 35 1 15 32 6 44 50 12 145 56 Fire 2551 | 2 53 26 . 3 88 59 . 41 5 14 12 . 100 36 78 35 87 15 33 38 82 37 14 111 36 104 88 34 101 22 27 121 38 153 429 12 131 286 Melee 72 | . . . . . . . . . . 5 2 . 18 . . . . . . . . . . . . . . . . . . . . . . . 47 . Ram 5 | . . 4 . . . . . . . . . . . . . . . . . . 1 . . . . . . . . . . . . . . . . . Kick . | . . . . . . . . . . . . . . . . . . . . . . . . . . . . . . . . . . . . . . . Crush 58 | 10 5 1 . 3 7 . 1 . . . . . . 2 . 3 1 . . 1 4 . . 1 3 . 2 . 2 . 2 1 6 1 1 . 1 . Escape Stasis 95 | . . . . . . 23 . 15 . . . . . . . . 11 . . 4 2 . . . . . . 12 . 2 . . . . . . 26 . Rewire 2 | . . . . . . . . . . . . . . . . . . . . . 2 . . . . . . . . . . . . . . . . . Trap . | . . . . . . . . . . . . . . . . . . . . . . . . . . . . . . . . . . . . . . . Miscellaneous . | . . . . . . . . . . . . . . . . . . . . . . . . . . . . . . . . . . . . . . . Route ------- -11/Scrapyard -10/Materials (discovered 4 exits: [*Mat x3] / *Min) -10/Mines (discovered 3 exits: [*Mat x2] / *Exi) -10/Exiles (discovered 2 exits: [*Min x2]) -9/Mines -8/Materials (discovered 3 exits: *Fac x2 / Gar) -8/Garrison (discovered 3 exits: *Mat x3) -8/Materials -8/Garrison (discovered 3 exits: *Fac x3) -7/Factory -7/Lower Caves -7/Lower Caves -7/Data Miner -6/Proximity Caves -6/Factory -6/Waste -6/Factory (discovered 3 exits: Low x2 / Gar) -6/Garrison (discovered 3 exits: *Fac x3) -5/Factory -5/Waste -5/Factory (discovered 5 exits: *Fac / Upp x2 / *Ext x2) -5/Extension (discovered 2 exits: *Fac / *Cet) -5/Cetus (discovered 2 exits: *Fac / *Arc) -5/Archives (discovered 3 exits: *Fac / *Hub x2) -5/Hub_04(d) (discovered 4 exits: *Fac x4) -4/Factory -4/Waste -4/Factory (discovered 2 exits: *Res / Gar) -4/Garrison (discovered 2 exits: *Fac x2) -4/Factory (discovered 5 exits: *Res x3 / [*Upp] / Gar) -4/Garrison -3/Research (discovered 4 exits: *Res / Arm / *Tes x2) -3/Testing -2/Research (discovered 2 exits: *Qua x2) -2/Quarantine (discovered 2 exits: *Acc / *Sec) -2/Section 7 -1/Access -1/Command (discovered 3 exits: [*Sur x2] / *Ac0) -1/Access_0 0b11 Command History --------- Turn | Location | Event 4 | -11/Scrapyard | Discovered new exit (range 3) 129 | -11/Scrapyard | Entered Materials 312 | -10/Materials | Build established: Mutant 368 | -10/Materials | Discovered new exit (range 9) 423 | -10/Materials | Central database locked down 423 | -10/Materials | Discovered new exit (range 13) 768 | -10/Materials | Discovered new exit (range 14) 1191 | -10/Materials | Discovered new exit (range 10) 1841 | -10/Materials | Build established: Hauler-Mutant 2120 | -10/Materials | Entered Mines 2132 | -10/Mines | Met a Derelict bent on vengeance 2191 | -10/Mines | Discovered new exit (range 7) 2288 | -10/Mines | Assembled infested the area 2293 | -10/Mines | Assisted by a Guerilla fighting off Assembled 2310 | -10/Mines | Deemed a non-threat by the Exiles lab entrance 2310 | -10/Mines | Discovered new exit (range 5) 2886 | -10/Mines | Core integrity fell below 50% 3220 | -10/Mines | Learned location of Storage (-7) 3263 | -10/Mines | Discovered new exit (range 9) 3288 | -10/Mines | Assisted by bots powering up and referring to "LRC-V3" 3322 | -10/Mines | Learned Materials trap positions 3538 | -10/Mines | Entered Exiles 3538 | -10/Exiles | Accompanied by 3 allies 3557 | -10/Exiles | Discovered new exit (range 15) 3573 | -10/Exiles | Met 8R-AWN 3596 | -10/Exiles | Met EX-HEX 3818 | -10/Exiles | Met EX-DEC 3824 | -10/Exiles | Learned location of Zion (-6) 3898 | -10/Exiles | Discovered new exit (range 14) 3916 | -10/Exiles | Entered Mines 3916 | -9/Mines | Accompanied by 3 allies 3954 | -9/Mines | Discovered new exit (range 6) 3959 | -9/Mines | Received a Rocket Launcher from a helpful Derelict 3982 | -9/Mines | Learned Materials stockpile data 4270 | -9/Mines | Found a damaged Exp. Sensor Array with a note attached 4274 | -9/Mines | Found Prototype Device 4497 | -9/Mines | Entered Materials 4497 | -8/Materials | Accompanied by 2 allies 4497 | -8/Materials | Evolved 4 slots: Propulsion x1, Utility x2, Weapon x1 4498 | -8/Materials | Loaded intel: 17 trap records 4545 | -8/Materials | Identified Exp. Sensor Array 4638 | -8/Materials | Lost 7 parts (1p2n1u3w) 4659 | -8/Materials | Destroyed 9 combat bots 4962 | -8/Materials | Build established: Hauler-Tank 5084 | -8/Materials | Discovered new exit (range 16) 5846 | -8/Materials | Repaired Exp. Sensor Array 6679 | -8/Materials | Discovered new exit (range 15) 6796 | -8/Materials | Identified exit to Garrison 6796 | -8/Materials | Entered Garrison 6886 | -8/Garrison | Triggered checkpoint 6895 | -8/Garrison | Core integrity fell below 50% 7059 | -8/Garrison | Discovered new exit (range 15) 7099 | -8/Garrison | Installed Relay Interface Framework 7145 | -8/Garrison | Triggered checkpoint 7197 | -8/Garrison | Garrison Relay disabled 7198 | -8/Garrison | Build established: Hauler-Mutant 7382 | -8/Garrison | Triggered checkpoint 7414 | -8/Garrison | Garrison Relay disabled 7548 | -8/Garrison | Triggered checkpoint 7694 | -8/Garrison | Triggered checkpoint 7777 | -8/Garrison | Discovered new exit (range 15) 7836 | -8/Garrison | Triggered checkpoint 8223 | -8/Garrison | Triggered checkpoint 8312 | -8/Garrison | Discovered new exit (range 10) 8332 | -8/Garrison | Triggered checkpoint 8369 | -8/Garrison | Garrison Relay disabled 8438 | -8/Garrison | Entered Materials 8543 | -8/Materials | Identified exit to Garrison 8543 | -8/Materials | Entered Garrison 8600 | -8/Garrison | Triggered checkpoint 8610 | -8/Garrison | Triggered checkpoint 8721 | -8/Garrison | Triggered checkpoint 8985 | -8/Garrison | Discovered new exit (range 11) 9110 | -8/Garrison | Build established: Hauler-Tank 9141 | -8/Garrison | Discovered new exit (range 9) 9308 | -8/Garrison | Discovered new exit (range 14) 9348 | -8/Garrison | Expanded RIF knowledge: Patrol Navigation 9395 | -8/Garrison | Triggered checkpoint 9439 | -8/Garrison | Garrison Relay disabled 9620 | -8/Garrison | Triggered checkpoint 9660 | -8/Garrison | Garrison Relay disabled 10065 | -8/Garrison | Build established: Bothacker-Mutant 10096 | -8/Garrison | Entered Factory 10096 | -7/Factory | Evolved 2 slots: Utility x2 10858 | -7/Factory | Discovered new exit (range 12) 10889 | -7/Factory | Identified exit to Lower Caves 10907 | -7/Factory | Entered Lower Caves 10908 | -7/Lower Caves | Encountered a Warlord checkpoint 10990 | -7/Lower Caves | Build established: Bothacker-Skirmisher 11212 | -7/Lower Caves | Learned Factory emergency access door positions 11400 | -7/Lower Caves | Build established: Bothacker-Mutant 12164 | -7/Lower Caves | Build established: Bothacker-Skirmisher 12707 | -7/Lower Caves | Discovered new exit (range 8) 12736 | -7/Lower Caves | Identified exit to Lower Caves 12791 | -7/Lower Caves | Learned Factory emergency access door positions 12988 | -7/Lower Caves | Entered another Lower Caves area 12988 | -7/Lower Caves | Accompanied by 1 ally 13169 | -7/Lower Caves | Build established: Bothacker-Mutant 13734 | -7/Lower Caves | Discovered new exit (range 5) 13835 | -7/Lower Caves | Identified exit to Data Miner 13837 | -7/Lower Caves | Entered Data Miner 13838 | -7/Data Miner | Discovered new exit (range 6) 13873 | -7/Data Miner | Met Data Miner 13910 | -7/Data Miner | Learned location of Section 7 (-2) 13910 | -7/Data Miner | Acquired the access code to Warlord's prototype stash 13941 | -7/Data Miner | Received God Mode back door access code from Data Miner 14020 | -7/Data Miner | Identified exit to Proximity Caves 14022 | -7/Data Miner | Entered Proximity Caves 14845 | -6/Proximity Caves | Spotted B-75 Beast 14847 | -6/Proximity Caves | Escorted by Enhanced Grunt 14868 | -6/Proximity Caves | Allies destroyed B-75 Beast 15712 | -6/Proximity Caves | Attracted the attention of an 0b10 checkpoint 15843 | -6/Proximity Caves | Learned Factory stockpile data 16005 | -6/Proximity Caves | Build established: Bothacker-Skirmisher 16363 | -6/Proximity Caves | Discovered new exit (range 4) 16371 | -6/Proximity Caves | Identified exit to Factory 16621 | -6/Proximity Caves | Entered Factory 16621 | -6/Factory | Evolved 2 slots: Utility x2 16912 | -6/Factory | Build established: Bothacker-Mutant 17601 | -6/Factory | Sucked down chute 17601 | -6/Factory | Entered Waste 17616 | -6/Waste | EMP discharged 17619 | -6/Waste | Spotted C-40 Crusher 17641 | -6/Waste | Destroyed C-40 Crusher 17662 | -6/Waste | Spotted C-40 Crusher 17684 | -6/Waste | Destroyed C-40 Crusher 17716 | -6/Waste | EMP discharged 17716 | -6/Waste | System corruption reached 10% 17717 | -6/Waste | Spotted C-40 Crusher 17778 | -6/Waste | Spotted C-40 Crusher 17797 | -6/Waste | Spotted C-40 Crusher 17816 | -6/Waste | EMP discharged 17819 | -6/Waste | Destroyed C-40 Crusher 17831 | -6/Waste | Found Damper Plating 17905 | -6/Waste | Spotted C-40 Crusher 17916 | -6/Waste | EMP discharged 17953 | -6/Waste | Destroyed C-40 Crusher 17968 | -6/Waste | Found Damper Plating 18016 | -6/Waste | EMP discharged 18079 | -6/Waste | Destroyed C-40 Crusher 18116 | -6/Waste | EMP discharged 18148 | -6/Waste | Discovered new exit (range 16) 18216 | -6/Waste | EMP discharged 18279 | -6/Waste | Destroyed C-40 Crusher 18316 | -6/Waste | EMP discharged 18387 | -6/Waste | Build established: Bothacker-Tank 18416 | -6/Waste | EMP discharged 18516 | -6/Waste | EMP discharged 18616 | -6/Waste | EMP discharged 18716 | -6/Waste | EMP discharged 18816 | -6/Waste | EMP discharged 18916 | -6/Waste | EMP discharged 19016 | -6/Waste | EMP discharged 19116 | -6/Waste | EMP discharged 19216 | -6/Waste | EMP discharged 19316 | -6/Waste | EMP discharged 19368 | -6/Waste | Build established: Bothacker-Mutant 19416 | -6/Waste | EMP discharged 19516 | -6/Waste | EMP discharged 19616 | -6/Waste | EMP discharged 19716 | -6/Waste | EMP discharged 19816 | -6/Waste | EMP discharged 19916 | -6/Waste | EMP discharged 20016 | -6/Waste | EMP discharged 20116 | -6/Waste | EMP discharged 20216 | -6/Waste | EMP discharged 20316 | -6/Waste | EMP discharged 20416 | -6/Waste | EMP discharged 20516 | -6/Waste | EMP discharged 20616 | -6/Waste | EMP discharged 20716 | -6/Waste | EMP discharged 20816 | -6/Waste | EMP discharged 20916 | -6/Waste | EMP discharged 21016 | -6/Waste | EMP discharged 21116 | -6/Waste | EMP discharged 21216 | -6/Waste | EMP discharged 21316 | -6/Waste | EMP discharged 21416 | -6/Waste | EMP discharged 21516 | -6/Waste | EMP discharged 21616 | -6/Waste | EMP discharged 21716 | -6/Waste | EMP discharged 21816 | -6/Waste | EMP discharged 21916 | -6/Waste | EMP discharged 22016 | -6/Waste | EMP discharged 22116 | -6/Waste | EMP discharged 22216 | -6/Waste | EMP discharged 22316 | -6/Waste | EMP discharged 22416 | -6/Waste | EMP discharged 22516 | -6/Waste | EMP discharged 22616 | -6/Waste | EMP discharged 22716 | -6/Waste | EMP discharged 22816 | -6/Waste | EMP discharged 22916 | -6/Waste | EMP discharged 23001 | -6/Waste | Identified exit to Factory 23006 | -6/Waste | Entered Factory 23852 | -6/Factory | Identified exit to Lower Caves 24305 | -6/Factory | Identified exit to Garrison 24313 | -6/Factory | Entered Garrison 24482 | -6/Garrison | Destroyed B-75 Beast 24822 | -6/Garrison | Garrison Relay disabled 25035 | -6/Garrison | Triggered checkpoint 25075 | -6/Garrison | Triggered checkpoint 25270 | -6/Garrison | Discovered new exit (range 9) 25395 | -6/Garrison | Build established: Bothacker-Tank 25453 | -6/Garrison | Discovered new exit (range 13) 25587 | -6/Garrison | Triggered checkpoint 25678 | -6/Garrison | Triggered checkpoint 25771 | -6/Garrison | Discovered new exit (range 10) 25785 | -6/Garrison | Identified exit to Factory 25801 | -6/Garrison | Expanded RIF knowledge: Threat Obfuscation 25872 | -6/Garrison | Build established: Bothacker-Mutant 25885 | -6/Garrison | Garrison Relay disabled 26040 | -6/Garrison | Entered Factory 26040 | -5/Factory | Evolved 2 slots: Propulsion x1, Utility x1 26461 | -5/Factory | Found Prototype Processor 26461 | -5/Factory | Identified Exp. Signal Interpreter 26533 | -5/Factory | Discovered new exit (range 5) 26535 | -5/Factory | Garrison activated, responded to threat 26550 | -5/Factory | Identified exit to Factory 26965 | -5/Factory | Sucked down chute 26965 | -5/Factory | Entered Waste 26980 | -5/Waste | EMP discharged 26982 | -5/Waste | Spotted C-40 Crusher 27077 | -5/Waste | Spotted C-40 Crusher 27080 | -5/Waste | EMP discharged 27114 | -5/Waste | Spotted C-40 Crusher 27164 | -5/Waste | Spotted C-40 Crusher 27180 | -5/Waste | EMP discharged 27211 | -5/Waste | Spotted C-40 Crusher 27216 | -5/Waste | Spotted C-40 Crusher 27280 | -5/Waste | EMP discharged 27288 | -5/Waste | Destroyed C-40 Crusher 27310 | -5/Waste | Found Damper Plating 27338 | -5/Waste | Destroyed C-40 Crusher 27355 | -5/Waste | Found Damper Plating 27380 | -5/Waste | EMP discharged 27395 | -5/Waste | Discovered new exit (range 13) 27480 | -5/Waste | EMP discharged 27484 | -5/Waste | Destroyed C-40 Crusher 27522 | -5/Waste | Found Damper Plating 27561 | -5/Waste | Identified exit to Factory 27562 | -5/Waste | Entered Factory 27585 | -5/Factory | Build established: Bothacker-Skirmisher 27834 | -5/Factory | Discovered exit to Factory (range 9) 27989 | -5/Factory | Build established: Bothacker-Mutant 28314 | -5/Factory | Identified exit to Upper Caves 28314 | -5/Factory | Identified exit to Extension 28776 | -5/Factory | Entered Extension 28839 | -5/Extension | Rescued a captive Derelict 28964 | -5/Extension | Rescued a captive Derelict 29293 | -5/Extension | Build established: Hauler-Skirmisher 29455 | -5/Extension | Incoming investigation squad redirected 29712 | -5/Extension | Destroyed B-75 Beast 29826 | -5/Extension | Disrupted transfer network 29905 | -5/Extension | Rescued a captive Derelict 29906 | -5/Extension | Rescued a captive Derelict 30373 | -5/Extension | Rescued A7 30477 | -5/Extension | Rescued a captive Derelict 30478 | -5/Extension | Rescued a captive Derelict 30603 | -5/Extension | Rescued a captive Derelict 30604 | -5/Extension | Rescued a captive Derelict 30691 | -5/Extension | Discovered exit to Factory (range 10) 30693 | -5/Extension | Discovered new exit (range 6) 30737 | -5/Extension | Identified exit to Cetus 30742 | -5/Extension | Entered Cetus 30742 | -5/Cetus | Accompanied by 5 allies (A7) 30747 | -5/Cetus | Acquired a Cetus Manufacturing Module code from A7 30858 | -5/Cetus | Spotted Cetus Guard 30858 | -5/Cetus | Spotted Cetus Guard 30860 | -5/Cetus | Spotted Cetus Guard 30867 | -5/Cetus | Destroyed Cetus Guard 30868 | -5/Cetus | Allies destroyed Cetus Guard 30869 | -5/Cetus | Spotted Cetus Guard 30873 | -5/Cetus | Allies destroyed Cetus Guard 30879 | -5/Cetus | Destroyed Cetus Guard 30985 | -5/Cetus | Started Cetus Manufacturing Module 31001 | -5/Cetus | Build established: Hauler-Mutant 31010 | -5/Cetus | Manufactured an Enhanced Grunt 31035 | -5/Cetus | Manufactured an Enhanced Grunt 31055 | -5/Cetus | Discovered new exit (range 16) 31060 | -5/Cetus | Manufactured an Enhanced Grunt 31085 | -5/Cetus | Manufactured an Enhanced Grunt 31087 | -5/Cetus | Spotted Cetus Guard 31087 | -5/Cetus | Spotted Cetus Guard 31091 | -5/Cetus | Spotted Cetus Guard 31093 | -5/Cetus | Destroyed Cetus Guard 31093 | -5/Cetus | Spotted Cetus Guard 31100 | -5/Cetus | Allies destroyed Cetus Guard 31106 | -5/Cetus | Destroyed Cetus Guard 31110 | -5/Cetus | Manufactured an Enhanced Grunt 31111 | -5/Cetus | Allies destroyed Cetus Guard 31126 | -5/Cetus | Discovered exit to Factory (range 15) 31141 | -5/Cetus | Met Revision 17 31311 | -5/Cetus | Destroyed A7 31320 | -5/Cetus | Extracted ID and sensor layout for unrecognized location from A7's data core 31357 | -5/Cetus | Identified exit to Archives 31358 | -5/Cetus | Entered Archives 31475 | -5/Archives | Discovered exit to Factory (range 15) 31496 | -5/Archives | Discovered new exit (range 16) 31536 | -5/Archives | Discovered new exit (range 14) 31728 | -5/Archives | Build established: Hauler-Skirmisher 32376 | -5/Archives | Identified exit to Hub_04(d) 32378 | -5/Archives | Entered Hub_04(d) 32490 | -5/Hub_04(d) | Discovered exit to Factory (range 23) 32897 | -5/Hub_04(d) | Discovered exit to Factory (range 14) 33280 | -5/Hub_04(d) | Discovered exit to Factory (range 11) 33593 | -5/Hub_04(d) | Discovered exit to Factory (range 19) 34431 | -5/Hub_04(d) | Network Hub disabled 34440 | -5/Hub_04(d) | Spotted Lightning 34440 | -5/Hub_04(d) | Spotted Lightning 34443 | -5/Hub_04(d) | Spotted Lightning 34443 | -5/Hub_04(d) | Spotted Lightning 34443 | -5/Hub_04(d) | Spotted Lightning 34443 | -5/Hub_04(d) | Spotted Lightning 34443 | -5/Hub_04(d) | Spotted Lightning 34443 | -5/Hub_04(d) | Spotted Lightning 34443 | -5/Hub_04(d) | Spotted Lightning 34443 | -5/Hub_04(d) | Spotted Lightning 34443 | -5/Hub_04(d) | Spotted Lightning 34452 | -5/Hub_04(d) | Network Hub disabled 34452 | -5/Hub_04(d) | Spotted Lightning 34494 | -5/Hub_04(d) | Entered Factory 34494 | -4/Factory | Evolved 2 slots: Utility x2 34619 | -4/Factory | Build established: Hauler-Mutant 35088 | -4/Factory | Identified exit to Garrison 35382 | -4/Factory | Spotted B-86 Titan 35393 | -4/Factory | Sucked down chute 35393 | -4/Factory | Entered Waste 35394 | -4/Waste | Joined by Warlord forces that had cleared the area 35547 | -4/Waste | Found Gamma Bomb Array 35750 | -4/Waste | Discovered new exit (range 11) 35756 | -4/Waste | Found Prototype Launcher 35756 | -4/Waste | Identified Point Singularity Launcher 35774 | -4/Waste | Identified exit to Factory 36321 | -4/Waste | Entered Factory 37623 | -4/Factory | Discovered new exit (range 14) 37783 | -4/Factory | Fabricated Adv. Terrain Scan Processor (x2) 38046 | -4/Factory | Identified exit to Garrison 38046 | -4/Factory | Entered Garrison 38134 | -4/Garrison | Triggered checkpoint 38206 | -4/Garrison | Destroyed 12 combat bots 38375 | -4/Garrison | Build established: Hauler-Tank 38443 | -4/Garrison | Discovered new exit (range 9) 38457 | -4/Garrison | Identified exit to Factory 38471 | -4/Garrison | Expanded RIF knowledge: Coupler Efficiency 38507 | -4/Garrison | Triggered checkpoint 38570 | -4/Garrison | Garrison Relay disabled 38801 | -4/Garrison | Triggered checkpoint 38843 | -4/Garrison | Garrison Relay disabled 39071 | -4/Garrison | Discovered exit to Factory (range 11) 39120 | -4/Garrison | Triggered checkpoint 39173 | -4/Garrison | Garrison Relay disabled 39383 | -4/Garrison | Entered Factory 39649 | -4/Factory | Found Unknown Protection 39649 | -4/Factory | Identified Hvy. Reflective Plating 39718 | -4/Factory | Found Prototype Processor 39718 | -4/Factory | Identified Exp. Melee Analysis Suite 39748 | -4/Factory | Build established: Bothacker-Mutant 39899 | -4/Factory | Discovered new exit (range 12) 40351 | -4/Factory | Discovered new exit (range 11) 40547 | -4/Factory | Discovered new exit (range 6) 41190 | -4/Factory | Discovered new exit (range 16) 41274 | -4/Factory | Repaired Adv. Cooling System 41306 | -4/Factory | Repaired HERF Cannon 41821 | -4/Factory | Identified exit to Garrison 41821 | -4/Factory | Entered Garrison 42030 | -4/Garrison | Triggered checkpoint 42221 | -4/Garrison | Discovered new exit (range 24) 42380 | -4/Garrison | Identified exit to Research 42391 | -4/Garrison | Expanded RIF knowledge: Signal Jamming 42584 | -4/Garrison | Triggered checkpoint 42709 | -4/Garrison | Garrison Relay disabled 42908 | -4/Garrison | Entered Research 42908 | -3/Research | Evolved 2 slots: Power x1, Utility x1 42962 | -3/Research | Identified exit to Armory 42962 | -3/Research | Identified exit to Testing 42994 | -3/Research | Build established: Botlord-Mutant 43150 | -3/Research | Discovered new exit (range 23) 43217 | -3/Research | Found Unknown Launcher 43217 | -3/Research | Identified Fusion Bomb Launcher 43610 | -3/Research | Entered Testing 44535 | -3/Testing | Found Prototype Protection 44535 | -3/Testing | Identified SHELL Armor 44629 | -3/Testing | Found Prototype Protection 44683 | -3/Testing | Found Prototype Device 44683 | -3/Testing | Identified Exp. Thermal Defense Suite 45144 | -3/Testing | Discovered new exit (range 4) 45147 | -3/Testing | Identified exit to Research 45161 | -3/Testing | Fabricated Biometal Heavy Treads? 45594 | -3/Testing | Found Prototype Device 45594 | -3/Testing | Identified Exp. Focal Shield 46023 | -3/Testing | Entered Research 46023 | -2/Research | Evolved 2 slots: Utility x2 46469 | -2/Research | Garrison activated, responded to threat 46676 | -2/Research | Identified exit to Quarantine 47090 | -2/Research | Build established: Bothacker-Skirmisher 47229 | -2/Research | Entered Quarantine 47272 | -2/Quarantine | Identified Med. Regenerative Plating 47281 | -2/Quarantine | Found Alien Artifact 47393 | -2/Quarantine | Repaired Broken Imp. KE Penetrator? 47402 | -2/Quarantine | Build established: Bothacker-Mutant 47609 | -2/Quarantine | Found Alien Artifact 47620 | -2/Quarantine | Found Alien Artifact 47935 | -2/Quarantine | Found Alien Artifact 47942 | -2/Quarantine | Identified Dimensional Node Initializer 47942 | -2/Quarantine | Initialized slip node 47954 | -2/Quarantine | Found Dimensional Node Initializer 47971 | -2/Quarantine | Found Alien Artifact 48230 | -2/Quarantine | Found Alien Slashing Weapon 48267 | -2/Quarantine | Cryocooling Duct disabled 48282 | -2/Quarantine | Ambient heat levels rising (+20) 48282 | -2/Quarantine | Non-combat units ordered to evacuate 48403 | -2/Quarantine | Discovered new exit (range 13) 48648 | -2/Quarantine | Found Alien Artifact 48648 | -2/Quarantine | Identified Subatomic Replicator 48703 | -2/Quarantine | Found Prototype Launcher 48703 | -2/Quarantine | Identified Tesla Bomb Launcher 49017 | -2/Quarantine | Incoming assault squad redirected 49442 | -2/Quarantine | Identified exit to Access 50669 | -2/Quarantine | Spotted Fortress 50787 | -2/Quarantine | Discovered new exit (range 5) 50792 | -2/Quarantine | Identified exit to Section 7 50800 | -2/Quarantine | Entered Section 7 50860 | -2/Section 7 | Spotted S7 Guard 50875 | -2/Section 7 | Spotted S7 Guard 50879 | -2/Section 7 | Destroyed S7 Guard 50889 | -2/Section 7 | Identified Phase Armor 50901 | -2/Section 7 | Destroyed S7 Guard 50938 | -2/Section 7 | Found Core Membrane 50938 | -2/Section 7 | Installed Core Membrane, gained immunity to corruption 50968 | -2/Section 7 | Found Integrated Heat Negator 50968 | -2/Section 7 | Installed Integrated Heat Negator, increased core heat dissipation (+40) 51006 | -2/Section 7 | Found Prototype Protection 51668 | -2/Section 7 | Build established: Bothacker-Skirmisher 51702 | -2/Section 7 | Found Prototype Device 51702 | -2/Section 7 | Identified Exp. Thermal Shield 51804 | -2/Section 7 | Found Alien Artifact 51878 | -2/Section 7 | P-80 Master assimilated allied Administrator 9a 51954 | -2/Section 7 | Scanned by Researcher 52058 | -2/Section 7 | Spotted S7 Guard 52070 | -2/Section 7 | Destroyed S7 Guard 52143 | -2/Section 7 | Identified Hvy. Regenerative Plating 52186 | -2/Section 7 | Used Subatomic Replicator to replicate Integrated Singularity Reactor 52187 | -2/Section 7 | Found Integrated Singularity Reactor 52187 | -2/Section 7 | Installed Integrated Singularity Reactor, increased core energy generation (+20) 52190 | -2/Section 7 | Installed Integrated Singularity Reactor, increased core energy generation (+20) 52232 | -2/Section 7 | Build established: Bothacker-Mutant 52350 | -2/Section 7 | Intercept squad dispatched 52354 | -2/Section 7 | Spotted Tracker 52354 | -2/Section 7 | Spotted Tracker 52370 | -2/Section 7 | Spotted Combat Programmer 52370 | -2/Section 7 | Spotted Combat Programmer 52386 | -2/Section 7 | Destroyed Tracker 52423 | -2/Section 7 | Destroyed Tracker 52433 | -2/Section 7 | Destroyed Combat Programmer 52446 | -2/Section 7 | Destroyed Combat Programmer 52492 | -2/Section 7 | Found Prototype Processor 52492 | -2/Section 7 | Identified Exp. Targeting Computer 52670 | -2/Section 7 | Discovered exit to Access (range 10) 52687 | -2/Section 7 | Initialized slip node 52842 | -2/Section 7 | Spotted B-90 Cyclops 52930 | -2/Section 7 | Found Alien Artifact 53187 | -2/Section 7 | Intercept squad dispatched 53199 | -2/Section 7 | Spotted Tracker 53199 | -2/Section 7 | Spotted Tracker 53213 | -2/Section 7 | Destroyed Tracker 53215 | -2/Section 7 | Destroyed Tracker 53234 | -2/Section 7 | Spotted Combat Programmer 53236 | -2/Section 7 | Spotted Combat Programmer 53243 | -2/Section 7 | Destroyed Combat Programmer 53255 | -2/Section 7 | Destroyed Combat Programmer 53269 | -2/Section 7 | Found Exp. Targeting Computer 53363 | -2/Section 7 | Identified Hpw. Transdimensional Reconstructor 53363 | -2/Section 7 | Identified Integrity Redistributor 53363 | -2/Section 7 | Identified Integrated Reactor 53363 | -2/Section 7 | Installed Integrated Reactor, increased core energy generation (+10) 53387 | -2/Section 7 | Found Integrated Reactor 53387 | -2/Section 7 | Installed Integrated Reactor, increased core energy generation (+10) 53736 | -2/Section 7 | Found Integrity Redistributor 53811 | -2/Section 7 | Incoming investigation squad redirected 53954 | -2/Section 7 | Intercept squad dispatched 53967 | -2/Section 7 | Spotted Tracker 53968 | -2/Section 7 | Spotted Tracker 53984 | -2/Section 7 | Destroyed Tracker 54004 | -2/Section 7 | Spotted Combat Programmer 54005 | -2/Section 7 | Spotted Combat Programmer 54006 | -2/Section 7 | Destroyed Tracker 54027 | -2/Section 7 | Destroyed Combat Programmer 54044 | -2/Section 7 | Destroyed Combat Programmer 54176 | -2/Section 7 | Destroyed 9 combat bots 54315 | -2/Section 7 | Spotted Executioner 54330 | -2/Section 7 | Spotted Executioner 54335 | -2/Section 7 | Destroyed Executioner 54359 | -2/Section 7 | Destroyed Executioner 54421 | -2/Section 7 | Lost 3 parts (1p1n1w) 54621 | -2/Section 7 | Found Alien Artifact 54701 | -2/Section 7 | Build established: Hauler-Mutant 54799 | -2/Section 7 | Identified Matter Drive 54872 | -2/Section 7 | Intercept squad dispatched 54892 | -2/Section 7 | Spotted Tracker 54892 | -2/Section 7 | Spotted Tracker 54923 | -2/Section 7 | Destroyed Tracker 54939 | -2/Section 7 | Destroyed Tracker 54947 | -2/Section 7 | Spotted Combat Programmer 54948 | -2/Section 7 | Spotted Combat Programmer 54964 | -2/Section 7 | Destroyed Combat Programmer 54984 | -2/Section 7 | Destroyed Combat Programmer 55095 | -2/Section 7 | Found Alien Artifact 55095 | -2/Section 7 | Identified LRC Armor 55095 | -2/Section 7 | Installed LRC Armor, increased core integrity (+250) 55107 | -2/Section 7 | Found LRC Armor 55107 | -2/Section 7 | Installed LRC Armor, increased core integrity (+250) 55110 | -2/Section 7 | Found Alien Artifact 55110 | -2/Section 7 | Identified LRC Insulator 55110 | -2/Section 7 | Installed LRC Insulator, gained EM resistance (25) 55231 | -2/Section 7 | Found Alien Artifact 55234 | -2/Section 7 | Found Alien Artifact 55236 | -2/Section 7 | Found Alien Artifact 55494 | -2/Section 7 | Found Alien Energy Gun 55494 | -2/Section 7 | Identified Sigix Quantum Sheargun 55497 | -2/Section 7 | Found Sigix Quantum Sheargun 55503 | -2/Section 7 | Identified Core Expander (x3) 55503 | -2/Section 7 | Installed Core Expander, added new Weapon slot 55610 | -2/Section 7 | Found Alien Artifact 55621 | -2/Section 7 | Intercept squad dispatched 55624 | -2/Section 7 | Found Alien Artifact 55626 | -2/Section 7 | Found Alien Artifact 55626 | -2/Section 7 | Identified Terrabomb (x2) 55626 | -2/Section 7 | Used Terrabomb 55638 | -2/Section 7 | Spotted Tracker 55640 | -2/Section 7 | Spotted Tracker 55645 | -2/Section 7 | Found Alien Artifact 55645 | -2/Section 7 | Identified Transdimensional Reconstructor (x2) 55645 | -2/Section 7 | Warped through subspace to slip node 55651 | -2/Section 7 | Entered Access 55651 | -1/Access | Evolved 2 slots: Weapon x2 55676 | -1/Access | Found Quantum Capacitor 56052 | -1/Access | Discovered new exit (range 17) 56199 | -1/Access | Identified exit to Command 56201 | -1/Access | Entered Command 56385 | -1/Command | Spotted M Guard 56385 | -1/Command | Spotted M Guard 56386 | -1/Command | Spotted Combat Programmer 56387 | -1/Command | Spotted Combat Programmer 56398 | -1/Command | Destroyed M Guard 56403 | -1/Command | Destroyed M Guard 56408 | -1/Command | Destroyed Combat Programmer 56410 | -1/Command | Destroyed Combat Programmer 56410 | -1/Command | All MAIN.C guards destroyed 56427 | -1/Command | Lost 3 parts (1p1u1w) 56440 | -1/Command | Found Prototype Reactor 56441 | -1/Command | Identified Zero-point Reactor 56457 | -1/Command | Found Prototype Device 56457 | -1/Command | Identified AEGIS Remote Shield 56462 | -1/Command | Found Zero-point Reactor 56464 | -1/Command | Found Prototype Launcher 56464 | -1/Command | Identified Adv. Micro-nuke Launcher 56468 | -1/Command | Found Prototype Energy Cannon 56468 | -1/Command | Identified Cld. Nova Cannon 56475 | -1/Command | Found Hvy. Regenerative Plating 56658 | -1/Command | Build established: Scavenger-Mutant 56693 | -1/Command | Met MAIN.C 56702 | -1/Command | 0b10 Conduit disabled 56702 | -1/Command | Destroyed MAIN.C Shell 56702 | -1/Command | MAIN.C activated Command garrisons 56724 | -1/Command | Destroyed MAIN.C 56737 | -1/Command | Found Prototype Protection 56739 | -1/Command | Found Prototype Protection 56748 | -1/Command | Found Prototype Device 56748 | -1/Command | Identified Beam Splitter 56751 | -1/Command | Found Prototype Processor 56751 | -1/Command | Identified Exp. Target Analyzer 56787 | -1/Command | Identified Sigix Broadsword 56952 | -1/Command | Destroyed 10 combat bots 57320 | -1/Command | Build established: Scavenger-Gunner 59588 | -1/Command | Discovered new exit (range 22) 60094 | -1/Command | Build established: Scavenger-Mutant 60572 | -1/Command | Found Prototype Device 60572 | -1/Command | Identified Exp. Phase Shifter 60576 | -1/Command | Found Prototype Device 60576 | -1/Command | Identified Adv. Kinecellerator 60581 | -1/Command | Found Prototype Device 60581 | -1/Command | Identified Exp. Force Field 60620 | -1/Command | Found Prototype Ballistic Cannon 60620 | -1/Command | Identified Omega Cannon 60853 | -1/Command | Found Prototype Energy Cannon 60853 | -1/Command | Identified Hpw. Disruptor Cannon 60881 | -1/Command | Found Antimissile System 61456 | -1/Command | Discovered new exit (range 17) 61834 | -1/Command | Spotted B-99 Colossus 61947 | -1/Command | Found Prototype Processor 62117 | -1/Command | Spotted B-99 Colossus 62126 | -1/Command | Destroyed B-99 Colossus 62223 | -1/Command | Found Unknown Protection 62223 | -1/Command | Identified Hvy. Insulated Plating 62238 | -1/Command | Found Prototype Processor 62238 | -1/Command | Identified Exp. Core Analyzer 62258 | -1/Command | Found Prototype Ballistic Gun 62258 | -1/Command | Identified Multirail 62304 | -1/Command | Found Exp. Targeting Computer 62417 | -1/Command | Destroyed B-99 Colossus 62420 | -1/Command | Build established: Scavenger-Skirmisher 62443 | -1/Command | Found Multirail 62448 | -1/Command | Found Multirail 62538 | -1/Command | Spotted B-99 Colossus 62631 | -1/Command | Destroyed B-99 Colossus 62717 | -1/Command | Found Multirail 62723 | -1/Command | Found Multirail 62854 | -1/Command | Build established: Scavenger-Executioner 63071 | -1/Command | Phase Generator disabled 63206 | -1/Command | Build established: Scavenger-Mutant 63967 | -1/Command | Identified Exp. Terrain Scan Processor 64019 | -1/Command | Build established: Scavenger-Skirmisher 64475 | -1/Command | Build established: Scavenger-Mutant 64791 | -1/Command | Found Vortex Chain Reactor 64824 | -1/Command | Found Adv. Kinecellerator 64831 | -1/Command | Found Exp. Force Field 64835 | -1/Command | Found Beam Splitter 64857 | -1/Command | Identified Exp. Powered Armor (x2) 66160 | -1/Command | Used Integrity Redistributor, redistributed integrity from core (-379) 66448 | -1/Command | Build established: Scavenger-Executioner 67490 | -1/Command | Build established: Hauler-Mutant 67827 | -1/Command | Warped through subspace to slip node 67827 | -1/Command | Discovered new exit (range 5) 67836 | -1/Command | Entered Access_0 67838 | -1/Access_0 | Met Architect 67849 | -1/Access_0 | Destroyed A8 67851 | -1/Access_0 | Architect warped through subspace 67912 | -1/Access_0 | Architect warped through subspace 67942 | -1/Access_0 | Subspace Access Node disabled 67969 | -1/Access_0 | Architect warped through subspace 68006 | -1/Access_0 | Subspace Access Node disabled 68030 | -1/Access_0 | Architect warped through subspace 68065 | -1/Access_0 | Architect warped through subspace 68107 | -1/Access_0 | Architect warped through subspace 68149 | -1/Access_0 | Architect warped through subspace 68188 | -1/Access_0 | Architect warped through subspace 68211 | -1/Access_0 | A6 warped into view 68233 | -1/Access_0 | Destroyed A6 68237 | -1/Access_0 | Used Integrity Redistributor, redistributed integrity from core (-245) 68247 | -1/Access_0 | Architect warped through subspace 68261 | -1/Access_0 | Build established: Scavenger-Executioner 68273 | -1/Access_0 | Core integrity fell below 50% 68326 | -1/Access_0 | Architect warped through subspace 68339 | -1/Access_0 | Found Sigix Broadsword 68364 | -1/Access_0 | Subspace Access Node disabled 68381 | -1/Access_0 | Architect warped through subspace 68458 | -1/Access_0 | Architect warped through subspace 68519 | -1/Access_0 | Architect warped through subspace 68556 | -1/Access_0 | Architect warped through subspace 68589 | -1/Access_0 | Architect warped through subspace 68597 | -1/Access_0 | Subspace Access Node disabled 68641 | -1/Access_0 | Lost 4 parts (2n2w) 68683 | -1/Access_0 | Found Prototype Device 68683 | -1/Access_0 | Identified Desublimator 68796 | -1/Access_0 | Found Prototype Device 68796 | -1/Access_0 | Identified Exp. Weapon Cycler 68837 | -1/Access_0 | Found Exp. Weapon Cycler 68861 | -1/Access_0 | Build established: Scavenger-Mutant 68863 | -1/Access_0 | Found Exp. Weapon Cycler 69072 | -1/Access_0 | Found Exp. Thermal Shield 69079 | -1/Access_0 | Found Exp. Thermal Shield 69106 | -1/Access_0 | Found Exp. Phase Shifter 69109 | -1/Access_0 | Found Desublimator 69143 | -1/Access_0 | Found Exp. Powered Armor 69418 | -1/Access_0 | A5 warped into view 69443 | -1/Access_0 | Destroyed A5 69716 | -1/Access_0 | Build established: Scavenger-Executioner 69751 | -1/Access_0 | Found Integrated Reactor 69751 | -1/Access_0 | Installed Integrated Reactor, increased core energy generation (+10) 70211 | -1/Access_0 | A4 warped into view 70284 | -1/Access_0 | Destroyed A4 70575 | -1/Access_0 | Found Sigix Corpse 71371 | -1/Access_0 | A3 warped into view 71561 | -1/Access_0 | Destroyed A2 71577 | -1/Access_0 | Extracted Singularity Gate Test 138-C access codes from A2's data core 71859 | -1/Access_0 | Found Prototype Device 71859 | -1/Access_0 | Identified Thermal Barrier 72046 | -1/Access_0 | Singularity Gate disabled 72162 | -1/Access_0 | Destroyed A3 72226 | -1/Access_0 | Found Prototype Device 72226 | -1/Access_0 | Identified Exp. Actuator Array 73310 | -1/Access_0 | Destroyed Architect 73342 | -1/Access_0 | Extracted unknown sensor trigger ID from Architect's data core 73399 | -1/Access_0 | Warped through subspace to slip node 73399 | -1/Access_0 | Discovered new exit (range 8) 73412 | *** | Establishing 0b11! Last Messages --------------- 73308_ HV Slug penetrates Architect. 73308_ Architect suffers critical hit. 73308_ Destroyed Exp. Target Analyzer. 73308_ HV Slug penetrates Architect. 73308_ Architect suffers critical hit. 73308_ HV Slug penetrates Architect. 73308_ HV Slug penetrates Earth. 73308_ HV Slug penetrates Architect. 73310_ Architect knocked back. 73310_ HV Slug penetrates Architect. 73310_ Architect knocked back. 73310_ HV Slug penetrates Architect. 73310_ Architect: "Defeated by a malfunctioning replica of a piece of alien starship?! You've got*fzzt* be kiddi*bzzz*" 73310_ Architect destroyed. 73318_ Ended siege mode. 73342_ Acquired data core, extracted unknown sensor trigger ID. 73399_ Warped through subspace, drawn to slip node. 73399_ EXIT=FOUND [Achievement: Winner's Signature] Map ----- +----------------------------------------------------+ | | | | | | | | | | | | | | | | | | | | | | | | | | | | | | | | | ?????????????????????????????????????????????????? | | ?????????????????????????????????????????????????? | | ?????????????????????????????????????????????????? | | ?????????????????????????????????????????????????? | | ?????????????????????????????????????????????????? | | ?????????????????????????????????????????????????? | | ????????????????????????###??????????????????????? | | ???????????????????????## ##?????????????????????? | | ???????????????????????# #?????????????????????? | | ???????????????????????# @ #?????????????????????? | | ??????????????????????## #?????????????????????? | | ??????????????????????# #?????????????????????? | | ??????????????????????# ##?????????????????????? | | ??????????????????????## #?????????????????????? | | ??????????????????????# #?????????????????????? | | ??????????????????????# ##?????????????????????? | | ??????????????????????# < #?????????????????????? | | ??????????????????????# ##?????????????????????? | | ??????????????????????## #??????????????????????? | | ???????????????????????####??????????????????????? | | ?????????????????????????????????????????????????? | | ?????????????????????????????????????????????????? | | ?????????????????????????????????????????????????? | | ?????????????????????????????????????????????????? | | ?????????????????????????????????????????????????? | | ?????????????????????????????????????????????????? | | ?????????????????????????????????????????????????? | | ?????????????????????????????????????????????????? | | ?????????????????????????????????????????????????? | | ?????????????????????????????????????????????????? | | ?????????????????????????????????????????????????? | | ?????????????????????????????????????????????????? | | ?????????????????????????????????????????????????? | | ?????????????????????????????????????????????????? | +----------------------------------------------------+ Best States ------------- Heat Dissipation 282 Energy Generation 125 Energy Capacity 1980 Matter Stores 800 Matter Capacity 800 Sight Range 22 Robot Scan Range 30 Terrain Scan Range 24 Terrain Scan Density 1010 Jamming Range 16 Power Amplification 20 Additional Mass Support 12 Armor Coverage 3000 Resistance: KI 30 Resistance: TH 75 Resistance: EM 90 Weapon Cycling 30 Evasion (%) 40 Targeting Accuracy 12 Target Analysis 12 Armor Integrity Analysis 66 Recoil Reduction 6 Matter Filtering 50 Particle Charging 30 Kinecelleration 50 Offensive Hacking 28 Relay Coupler Types 36 Relay Coupler Value 2 Item Schematics ----------------- Hcp. Storage Unit | -10/Materials | Hacked Exp. Sensor Array | -8/Materials | Scanalyzed Combat Drone Bay | -7/Data Miner | Free Exp. Flexi-carbon Leg | -7/Data Miner | Free Tactical Coordination Suite | -7/Data Miner | Free Plasma Sword | -7/Data Miner | Free Kinetic Spear | -7/Data Miner | Free Nova Cannon | -4/Factory | Hacked Adv. Terrain Scan Processor | -4/Factory | Hacked Biometal Heavy Treads | -3/Testing | Hacked Robot Schematics ------------------ S-27 Virus | -7/Data Miner | Free G-50 Soldier | -7/Data Miner | Free G-67 Veteran | -7/Data Miner | Free H-66 Slayer | -7/Data Miner | Free I-36 Angel | -7/Data Miner | Free Fabricated ------------ Adv. Terrain Scan Processor | x2 | -4/Factory Biometal Heavy Treads | x2 | -3/Testing Alien Tech Used ----------------- Dimensional Node Initializer Subatomic Replicator Phase Armor Core Membrane Integrated Heat Negator Integrated Singularity Reactor Integrated Reactor Matter Drive LRC Armor LRC Insulator Sigix Quantum Sheargun Core Expander Terrabomb Transdimensional Reconstructor Sigix Broadsword Integrity Redistributor High-powered Transdimensional Reconstructor Achievements -------------- Winner's Signature Challenges ------------ None Game ------ Seed SmartbombPortableProjector Manual? 0 Play Time 10:33:31 Cumulative 285.4 hours Start 2021.01.09 @ 17:27:29 End 2021.01.11 @ 01:01:37 Sessions 3 Manual Loads 0 Difficulty Rogue Special Mode None Game No. 141 Rogue 141 Adventurer 0 Explorer 0 Win Type 1 Total 5 Types 1/3/0/0/0/0/1/0/0 Lore% 73 Gallery% 79 Achievement% 65 Wizard Run 0 Options --------- ASCII 1 Keyboard 1 Movement Vi Keybinds 0 Fullscreen 1 Font 16/Terminus Map View 75x55 Tactical HUD 1 Map Filters NONE Filters NONE Steam 1 RUN: 9026957a-abc1-41a6-a2b3-1f33f4c70888